NUMERO_MANDATO;RIGA_MANDATO;QUIET; IMPORTO_RIGA ;IMPORTO_MANDATO;BENEFICIARIO;CIG;TITOLO_PAGAMENTO;DATA_MANDATO;CAPITOLO;ARTICOLO;NUMERO_IMPEGNO;TITOLO;DESCR_TITOLO;LIVELLO_II;DESCR_LIVELLO_II;LIVELLO_III;DESCR_LIVELLO_III;LIVELLO_IV;DESCR_LIVELLO_IV;LIVELLO_V;DESCR_LIVELLO_V;DATA_PAG_EFF
2;1;0; 3,80 ;68,8;ECONOMO UNIONE MONTANA MAROSTICENSE (PIGATO ANTONELLA); ;Rimborso bolletta N.    74 del  13-12-17 PAGAMENTO PEDAGGIO AUTOSTRADALE X RAGGIUNGERE FORNITORE DIVISE DITTA FAP - MARCOLONGO PD - IL 04122017 - COMANDANTE CRESTANI VALTER.;17/01/2018;244;0;165;1;Spese correnti;3;Acquisto di beni e servizi;2;Acquisto di servizi;2;Organizzazione eventi, pubblicita` e servizi per trasferta;2;Indennità di missione e di trasferta;17/01/2018
2;2;0; 7,20 ;68,8;ECONOMO UNIONE MONTANA MAROSTICENSE (PIGATO ANTONELLA); ;Rimborso bolletta N.    63 del  17-10-17 PAGAMENTO PEDAGGIO AUTOSTRADALE X VIAGGIO A SAN BONIFACIO X VISIONE SISTEMA ZTL INSTALLATO PRESSO COMANDO DELLA POLIZIA LOCALE - COMANDANTE VALTER CRESTANI;17/01/2018;244;0;165;1;Spese correnti;3;Acquisto di beni e servizi;2;Acquisto di servizi;2;Organizzazione eventi, pubblicita` e servizi per trasferta;2;Indennità di missione e di trasferta;17/01/2018
2;3;0; 16,60 ;68,8;ECONOMO UNIONE MONTANA MAROSTICENSE (PIGATO ANTONELLA); ;Rimborso bolletta N.    72 del  11-12-17 PAGAMENTO BIGLIETTO FERROVIARIO E PARCHEGGIO X INCONTRO CON FUNZIONARI DEL SERVIZIO CIVILE REGIONALE A VENEZIA IL 22062017 - SIG. MASSIMILIANO CANTELE;17/01/2018;244;0;165;1;Spese correnti;3;Acquisto di beni e servizi;2;Acquisto di servizi;2;Organizzazione eventi, pubblicita` e servizi per trasferta;2;Indennità di missione e di trasferta;17/01/2018
2;4;0; 18,00 ;68,8;ECONOMO UNIONE MONTANA MAROSTICENSE (PIGATO ANTONELLA); ;"Rimborso bolletta N.    64 del  17-10-17 PAGAMENTO BIGLIETTO FERROVIARIO E PARCHEGGIO X CONVOCAZIONE IN COMMISSIONE INPS X PROGETTO ""HOME CARE PREMIUM 2017"" - DOTT. FRISON MICHELE ANGELO";17/01/2018;244;0;165;1;Spese correnti;3;Acquisto di beni e servizi;2;Acquisto di servizi;2;Organizzazione eventi, pubblicita` e servizi per trasferta;2;Indennità di missione e di trasferta;17/01/2018
2;5;0; 23,20 ;68,8;ECONOMO UNIONE MONTANA MAROSTICENSE (PIGATO ANTONELLA); ;Rimborso bolletta N.    73 del  11-12-17 PAGAMENTO PEDAGGIO AUTOSTRADALE X 14 FORUM NAZIONALE DI POLIZIA LOCALE DEL 16-17 NOVEMBRE 2017 A PESCANTINA (VR) - COMANDANTE CRESTANI VALTER;17/01/2018;244;0;165;1;Spese correnti;3;Acquisto di beni e servizi;2;Acquisto di servizi;2;Organizzazione eventi, pubblicita` e servizi per trasferta;2;Indennità di missione e di trasferta;17/01/2018
3;1;0; 9,00 ;9;ECONOMO UNIONE MONTANA MAROSTICENSE (PIGATO ANTONELLA); ;Rimborso bolletta N.    71 del  07-12-17 SPESE X SPEDIZIONE PACCO ORDINARIO ALL'ATER DI VICENZA;17/01/2018;262;0;361;1;Spese correnti;3;Acquisto di beni e servizi;2;Acquisto di servizi;16;Servizi amministrativi;2;Spese postali;17/01/2018
4;1;0; 95,16 ;95,16;ECONOMO UNIONE MONTANA MAROSTICENSE (PIGATO ANTONELLA); ;Rimborso bolletta N.    69 del  15-11-17 ACQUISTO N 1 BATTERIA E N 1 SCHEDA MEMORIA X MACCHINA FOTOGRAFICA - DIP. BERTONCELLO MONICA;17/01/2018;401;0;346;1;Spese correnti;3;Acquisto di beni e servizi;1;Acquisto di beni;2;Altri beni di consumo;999;Altri beni e materiali di consumo n.a.c.;17/01/2018
5;1;0; 139,50 ;139,5;ECONOMO UNIONE MONTANA MAROSTICENSE (PIGATO ANTONELLA);0;Rimborso bolletta N.    66 del  30-10-17 ACQUISTO SCARPE - AGENTE DISCONZI MONICA;17/01/2018;403;0;130;1;Spese correnti;3;Acquisto di beni e servizi;1;Acquisto di beni;2;Altri beni di consumo;4;Vestiario;17/01/2018
6;1;0; 90,05 ;90,05;ECONOMO UNIONE MONTANA MAROSTICENSE (PIGATO ANTONELLA);0;Rimborso bolletta N.    67 del  15-11-17 ACQUISTO SCARPE - ASSISTENTE SCELTO ZANINI ALDO;17/01/2018;403;0;130;1;Spese correnti;3;Acquisto di beni e servizi;1;Acquisto di beni;2;Altri beni di consumo;4;Vestiario;17/01/2018
7;1;0; 180,00 ;180;ECONOMO UNIONE MONTANA MAROSTICENSE (PIGATO ANTONELLA);0;Rimborso bolletta N.    62 del  17-10-17 ACQUISTO SCARPE - ASSISTENTE SCELTO CHIERICATTI GIUSEPPE;17/01/2018;403;0;130;1;Spese correnti;3;Acquisto di beni e servizi;1;Acquisto di beni;2;Altri beni di consumo;4;Vestiario;17/01/2018
8;1;0; 110,05 ;110,05;ECONOMO UNIONE MONTANA MAROSTICENSE (PIGATO ANTONELLA);0;Rimborso bolletta N.    68 del  15-11-17 ACQUISTO SCARPE COMANDANTE CRESTANI VALTER;17/01/2018;403;0;130;1;Spese correnti;3;Acquisto di beni e servizi;1;Acquisto di beni;2;Altri beni di consumo;4;Vestiario;17/01/2018
9;1;0; 96,24 ;96,24;ECONOMO UNIONE MONTANA MAROSTICENSE (PIGATO ANTONELLA); ;Rimborso bolletta N.    65 del  30-10-17 ACQUISTO MARCHE DA BOLLO X L'AVVIO DELL'ISTANZA DI AMMINISTRATORE DI SOSTEGNO X LA SIG.RA L.R.-LEGGE N. 6 DEL 09012004 - DOTT. FRISON MICHELE  ANGELO;17/01/2018;1601;0;260;1;Spese correnti;3;Acquisto di beni e servizi;1;Acquisto di beni;2;Altri beni di consumo;999;Altri beni e materiali di consumo n.a.c.;17/01/2018
10;1;0; 27,90 ;27,9;ECONOMO UNIONE MONTANA MAROSTICENSE (PIGATO ANTONELLA); ;Rimborso bolletta N.    70 del  15-11-17 ACQUISTO DIVISA X OPERATORE SOCIO-SANITARIO;17/01/2018;1601;0;347;1;Spese correnti;3;Acquisto di beni e servizi;1;Acquisto di beni;2;Altri beni di consumo;4;Vestiario;17/01/2018
11;1;0; 615,00 ;615;S.A.P.A. s.r.l.;Z791E2EF7C;SALDO Fatt.n. 165/2017  del 24/06/2017;19/01/2018;1700;0;140;1;Spese correnti;3;Acquisto di beni e servizi;2;Acquisto di servizi;99;Altri servizi;999;Altri servizi diversi n.a.c.;19/01/2018
12;1;0; 900,00 ;900;NOMODIDATTICA S.R.L.;Z4720409ED;"SALDO Fatt.n. 315/2017  del 13/12/2017 SEMINARIO IN HOUSE SU ""ACCESSO DELL'INTERESSATO E ACCESSO CIVICO NEL RISPETTO DELLA PRIVACY""";22/01/2018;134;0;317;1;Spese correnti;3;Acquisto di beni e servizi;2;Acquisto di servizi;4;Acquisto di servizi per formazione e addestramento del personale dell'ente;4;Acquisto di servizi per formazione obbligatoria;22/01/2018
13;1;0; 1.600,00 ;1.600,00;NOMODIDATTICA S.R.L.;Z272070DC1;"SALDO Fatt.n. 316/2017  del 19/12/2017 Corso in house su ""Le nuove regole dopo il Correttivo del Codice e le Linee guida ANAC.";22/01/2018;134;0;333;1;Spese correnti;3;Acquisto di beni e servizi;2;Acquisto di servizi;4;Acquisto di servizi per formazione e addestramento del personale dell'ente;4;Acquisto di servizi per formazione obbligatoria;22/01/2018
14;1;0; 5.616,60 ;5.616,60;FONDAZIONE GIUSEPPE RUBBI - CASA PER ANZIANI; ;SALDO Fatt.n. 3/34  del 31/10/2017 FORNITURA PASTI ANZIANI  E INABILI;22/01/2018;1704;0;20;1;Spese correnti;3;Acquisto di beni e servizi;2;Acquisto di servizi;15;Contratti di servizio pubblico;9;Contratti di servizio di assistenza sociale domiciliare;22/01/2018
15;1;0; 3.050,00 ;3.050,00;PAL INFORMATICA SRL;ZA81EDC040;SALDO Fatt.n. M/630  del 15/12/2017 ACQUISTI LICENZE SOFTWARE  CITYWARE;22/01/2018;264;0;209;1;Spese correnti;3;Acquisto di beni e servizi;2;Acquisto di servizi;19;Servizi informatici e di telecomunicazioni;1;Gestione e manutenzione applicazioni;22/01/2018
16;1;0; 250,10 ;250,1;PAUL HARTMANN S.P.A.;Z181FC3AD4;SALDO Fatt.n. 0086445567  del 19/09/2017 FORNITURA MATERIALE VARIO PER ASSISTENZA DOMICILIARE CON PROGETTO HOME CARE;23/01/2018;1704;0;271;1;Spese correnti;3;Acquisto di beni e servizi;2;Acquisto di servizi;15;Contratti di servizio pubblico;9;Contratti di servizio di assistenza sociale domiciliare;23/01/2018
17;1;0; 343,94 ;343,94;PAUL HARTMANN S.P.A.;ZD7203D97A;SALDO Fatt.n. 0086447638  del 12/10/2017 MATERIALE VARIO PER ASSISTENZA DOMICILIARE IN PROGETTO HOME CARE;23/01/2018;1704;0;316;1;Spese correnti;3;Acquisto di beni e servizi;2;Acquisto di servizi;15;Contratti di servizio pubblico;9;Contratti di servizio di assistenza sociale domiciliare;23/01/2018
18;1;0; 2.583,35 ;2.583,35;SISTEMICA SRL;Z491CC2C5E;SALDO Fatt.n. FATTPA 6_17  del 14/12/2017 ASSISTENZA INFORMATICA;23/01/2018;264;0;414;1;Spese correnti;3;Acquisto di beni e servizi;2;Acquisto di servizi;19;Servizi informatici e di telecomunicazioni;1;Gestione e manutenzione applicazioni;23/01/2018
19;1;0; 185,20 ;185,2;OPEN SOFTWARE S.R.L.;ZBB2011AC7;SALDO Fatt.n. 005584  del 30/11/2017 GESTIONE INVIO VERBALI CDS;23/01/2018;510;0;298;1;Spese correnti;3;Acquisto di beni e servizi;2;Acquisto di servizi;16;Servizi amministrativi;999;Altre spese per servizi amministrativi;23/01/2018
20;1;0; 398,10 ;398,1;OPEN SOFTWARE S.R.L.;ZBB2011AC7;SALDO Fatt.n. 005585  del 30/11/2017 GESTIONE INVIO VERBALI CDS BOLLI;23/01/2018;510;0;298;1;Spese correnti;3;Acquisto di beni e servizi;2;Acquisto di servizi;16;Servizi amministrativi;999;Altre spese per servizi amministrativi;23/01/2018
21;1;0; 219,60 ;219,6;OPEN SOFTWARE S.R.L.;ZBB2011AC7;SALDO Fatt.n. 005586  del 30/11/2017 GESTIONE INVIO VERBALI  CDS BOLLI;23/01/2018;510;0;298;1;Spese correnti;3;Acquisto di beni e servizi;2;Acquisto di servizi;16;Servizi amministrativi;999;Altre spese per servizi amministrativi;23/01/2018
22;1;0; 499,97 ;499,97;AUTOFFICINA ELETTRAUTO PIZZATO ENZO;ZAF1D259E7;ACCONTO Fatt.n. 00240  del 12/12/2017 ASSISTENZA PNEUMATICI AUTO DELLA P.L.;23/01/2018;233;0;124;1;Spese correnti;3;Acquisto di beni e servizi;2;Acquisto di servizi;9;Manutenzione ordinaria e riparazioni;1;Manutenzione ordinaria e riparazioni di mezzi di trasporto ad uso civile, di sicurezza e ordine pubblico;23/01/2018
23;1;0; 209,23 ;209,23;AUTOFFICINA ELETTRAUTO PIZZATO ENZO;ZAF1D259E7;SALDO Fatt.n. 00231  del 30/11/2017 ASSISTENZA PNEUMATICI INVERNALI AUTO DELLA P.L.;23/01/2018;233;0;124;1;Spese correnti;3;Acquisto di beni e servizi;2;Acquisto di servizi;9;Manutenzione ordinaria e riparazioni;1;Manutenzione ordinaria e riparazioni di mezzi di trasporto ad uso civile, di sicurezza e ordine pubblico;23/01/2018
24;1;0; 403,84 ;403,84;AUTOFFICINA ELETTRAUTO PIZZATO ENZO;ZAF1D259E7;SALDO Fatt.n. 00232  del 30/11/2017 ASSISTENZA  E REVISIONE PERIODICA AUTO DELLA P.L.;23/01/2018;233;0;124;1;Spese correnti;3;Acquisto di beni e servizi;2;Acquisto di servizi;9;Manutenzione ordinaria e riparazioni;1;Manutenzione ordinaria e riparazioni di mezzi di trasporto ad uso civile, di sicurezza e ordine pubblico;23/01/2018
25;1;0; 385,30 ;385,3;AUTOFFICINA ELETTRAUTO PIZZATO ENZO;ZAF1D259E7;SALDO Fatt.n. 00210  del 10/11/2017 ASSITENZA E REVISIONE PERIODICA OPEL ASTRA P.L.;23/01/2018;233;0;124;1;Spese correnti;3;Acquisto di beni e servizi;2;Acquisto di servizi;9;Manutenzione ordinaria e riparazioni;1;Manutenzione ordinaria e riparazioni di mezzi di trasporto ad uso civile, di sicurezza e ordine pubblico;23/01/2018
26;1;0; 474,48 ;474,48;AUTOFFICINA ELETTRAUTO PIZZATO ENZO;ZAF1D259E7;SALDO Fatt.n. 00252  del 19/12/2017 ASSISTENZA E REVISIONE PERIODICA VEICOLO ASSISTENZA;23/01/2018;233;0;16;1;Spese correnti;3;Acquisto di beni e servizi;2;Acquisto di servizi;9;Manutenzione ordinaria e riparazioni;1;Manutenzione ordinaria e riparazioni di mezzi di trasporto ad uso civile, di sicurezza e ordine pubblico;23/01/2018
27;1;0; 142,00 ;142;OMESSO NOMINATIVO NEL RISPETTO DELLA NORMATIVA SULLA PROTEZIONE DATI PERSONALI; ;SALDO Fatt.n. 39/13/3  del 30/11/2017 progetto Home care Premium 2017 utente Bizzotto Gianfranca mese di novembre 2017;23/01/2018;1704;0;257;1;Spese correnti;3;Acquisto di beni e servizi;2;Acquisto di servizi;15;Contratti di servizio pubblico;8;Contratti di servizio di assistenza sociale residenziale e semiresidenziale;23/01/2018
28;1;0; 6.923,50 ;6.923,50;ELTRAFF SRL;Z4A20BA8E3;SALDO Fatt.n. 1297/17/PA  del 19/12/2017 Fornitura di analizzatore DrugTest 5000 matr. ARJJ-0053 completo di tastiera;24/01/2018;2207;0;353;2;Spese in conto capitale;2;Investimenti fissi lordi e acquisto di terreni;1;Beni materiali;7;Hardware;999;Hardware n.a.c.;24/01/2018
29;1;0; 86,62 ;86,62;ALFA ANTINCENDIO S.R.L.;ZA11F6B1B8;SALDO Fatt.n. 177  del 21/12/2017 ASSISTENZA TECNICA DI DICEMBRE 2017;24/01/2018;236;0;239;1;Spese correnti;3;Acquisto di beni e servizi;2;Acquisto di servizi;9;Manutenzione ordinaria e riparazioni;5;Manutenzione ordinaria e riparazioni di attrezzature;24/01/2018
30;1;0; 618,82 ;618,82;CARROZZERIA SPRINT CAR S.A.S.;Z7B1D25A98;SALDO Fatt.n. 5  del 29/11/2017 RIPARAZIONE FIAT 16 POLIZIA LOCALE;25/01/2018;233;0;18;1;Spese correnti;3;Acquisto di beni e servizi;2;Acquisto di servizi;9;Manutenzione ordinaria e riparazioni;1;Manutenzione ordinaria e riparazioni di mezzi di trasporto ad uso civile, di sicurezza e ordine pubblico;25/01/2018
31;1;0; 43,92 ;43,92;BLU SERVICE S.R.L.;ZBD1D036A7;SALDO Fatt.n. 1261/PA  del 31/12/2017 Blu Service Srl ACQUA PER UFFICI;25/01/2018;401;0;9;1;Spese correnti;3;Acquisto di beni e servizi;1;Acquisto di beni;2;Altri beni di consumo;999;Altri beni e materiali di consumo n.a.c.;25/01/2018
32;1;0; 220,20 ;220,2;SCANAGATTA CARBURANTI SRL;ZF01D10A74;SALDO Fatt.n. V3  39  del 31/12/2017 carburante polizia dic 2017;25/01/2018;220;0;15;1;Spese correnti;3;Acquisto di beni e servizi;1;Acquisto di beni;2;Altri beni di consumo;2;Carburanti, combustibili e lubrificanti;25/01/2018
33;1;0; 50,98 ;50,98;AUTOLAVAGGIO MILLE LUNE DI COSTACURTA SIMONE;Z9C1E581FD;SALDO Fatt.n. FATTPA 4_17  del 30/12/2017 LAVAGGIO AUTOVETTURE DELLA P.L.;26/01/2018;233;0;157;1;Spese correnti;3;Acquisto di beni e servizi;2;Acquisto di servizi;9;Manutenzione ordinaria e riparazioni;1;Manutenzione ordinaria e riparazioni di mezzi di trasporto ad uso civile, di sicurezza e ordine pubblico;26/01/2018
34;1;0; 589,41 ;589,41;SCANAGATTA CARBURANTI SRL;ZF01D10A74;SALDO Fatt.n. V3  40  del 31/12/2017 Fornitura di carburante servizi sociali dic 2017;26/01/2018;220;0;62;1;Spese correnti;3;Acquisto di beni e servizi;1;Acquisto di beni;2;Altri beni di consumo;2;Carburanti, combustibili e lubrificanti;26/01/2018
35;1;0; 2.090,92 ;2.090,92;ADELANTE SOCIETA' COOPERATIVA SOCIALE ONLUS;ZF31D43CF9;"SALDO Fatt.n. 201E  del 31/12/2017 Gestione ""Sportello Informalavoro""";26/01/2018;1760;0;52;1;Spese correnti;3;Acquisto di beni e servizi;2;Acquisto di servizi;11;Prestazioni professionali e specialistiche;2;Assistenza psicologica, sociale e religiosa;26/01/2018
36;1;0; 100,41 ;100,41;SANTEX S.P.A.;Z2720798FB;SALDO Fatt.n. C63-37012110  del 31/10/2017 Fornitura di beni e/o servizi per assistenza domiciliare in progetto Home Care;26/01/2018;1601;0;337;1;Spese correnti;3;Acquisto di beni e servizi;1;Acquisto di beni;2;Altri beni di consumo;999;Altri beni e materiali di consumo n.a.c.;26/01/2018
37;1;0; 915,00 ;915;OPEN SOFTWARE S.R.L.;Z752101A0E;SALDO Fatt.n. 006346  del 31/12/2017 Fornitura Boll. verbali, formato A4, 10 bollette- tre copie;26/01/2018;401;0;371;1;Spese correnti;3;Acquisto di beni e servizi;1;Acquisto di beni;2;Altri beni di consumo;1;Carta, cancelleria e stampati;26/01/2018
38;1;0; 59,78 ;59,78;NIVI CREDIT S.R.L.;ZA21ECF1B7;SALDO Fatt.n. 8981E  del 31/12/2017 TOTALE VERBALI INCASSATI;26/01/2018;509;0;200;1;Spese correnti;3;Acquisto di beni e servizi;2;Acquisto di servizi;16;Servizi amministrativi;999;Altre spese per servizi amministrativi;26/01/2018
39;1;0; 58,15 ;58,15;NIVI CREDIT S.R.L.;ZA21ECF1B7;SALDO Fatt.n. 8982E  del 31/12/2017 CORRISPETTIVI PER DUE VERBALI INCASSATI;26/01/2018;509;0;200;1;Spese correnti;3;Acquisto di beni e servizi;2;Acquisto di servizi;16;Servizi amministrativi;999;Altre spese per servizi amministrativi;26/01/2018
40;1;0; 93,65 ;93,65;OPEN SOFTWARE S.R.L.;ZBB2011AC7;SALDO Fatt.n. 006084  del 31/12/2017 Anticipo bolli postali;26/01/2018;510;0;298;1;Spese correnti;3;Acquisto di beni e servizi;2;Acquisto di servizi;16;Servizi amministrativi;999;Altre spese per servizi amministrativi;26/01/2018
41;1;0; 913,20 ;913,2;OPEN SOFTWARE S.R.L.;ZBB2011AC7;SALDO Fatt.n. 006085  del 31/12/2017 Anticipazione spese per valori bollati e virtuali;26/01/2018;510;0;298;1;Spese correnti;3;Acquisto di beni e servizi;2;Acquisto di servizi;16;Servizi amministrativi;999;Altre spese per servizi amministrativi;26/01/2018
42;1;0; 283,28 ;283,28;OPEN SOFTWARE S.R.L.;ZBB2011AC7;SALDO Fatt.n. 006083  del 31/12/2017 Rendicontazione e Stampa/Imbustamento verbali;26/01/2018;510;0;298;1;Spese correnti;3;Acquisto di beni e servizi;2;Acquisto di servizi;16;Servizi amministrativi;999;Altre spese per servizi amministrativi;26/01/2018
43;1;0; 2.196,00 ;2.196,00;KIBERNETES S.R.L.;ZC81971310;SALDO Fatt.n. 0000045 / PAE  del 18/01/2018 ASSISTENZA FISCALE;26/01/2018;201;0;96;1;Spese correnti;3;Acquisto di beni e servizi;2;Acquisto di servizi;16;Servizi amministrativi;999;Altre spese per servizi amministrativi;26/01/2018
44;1;0; 150,63 ;150,63;SANTEX S.P.A.;Z2E20F2278;SALDO Fatt.n. C63-37013347  del 28/11/2017 Fornitura di beni e/o servizi Ass.dom. prog. Home Care;26/01/2018;1704;0;358;1;Spese correnti;3;Acquisto di beni e servizi;2;Acquisto di servizi;15;Contratti di servizio pubblico;9;Contratti di servizio di assistenza sociale domiciliare;26/01/2018
45;1;0;-79,20 ;5.946,60;FONDAZIONE GIUSEPPE RUBBI - CASA PER ANZIANI; ;SALDO Fatt.n. 3/44  del 31/12/2017 RETTIFICA FORN.PASTI A FAVORE DI PERSONE ANZIANE E INABILI NOVEMBRE 2017;26/01/2018;1704;0;20;1;Spese correnti;3;Acquisto di beni e servizi;2;Acquisto di servizi;15;Contratti di servizio pubblico;9;Contratti di servizio di assistenza sociale domiciliare;26/01/2018
45;2;0; 6.025,80 ;5.946,60;FONDAZIONE GIUSEPPE RUBBI - CASA PER ANZIANI; ;SALDO Fatt.n. 000018-2017-1  del 31/05/2017 FORNITURA PASTI PER ANZIANI;26/01/2018;1704;0;20;1;Spese correnti;3;Acquisto di beni e servizi;2;Acquisto di servizi;15;Contratti di servizio pubblico;9;Contratti di servizio di assistenza sociale domiciliare;26/01/2018
46;1;0; 4.804,80 ;4.804,80;FONDAZIONE GIUSEPPE RUBBI - CASA PER ANZIANI; ;SALDO Fatt.n. 3/43  del 31/12/2017 FORNITURA PASTI A PERSONE ANZIANE O DISABILI;26/01/2018;1704;0;20;1;Spese correnti;3;Acquisto di beni e servizi;2;Acquisto di servizi;15;Contratti di servizio pubblico;9;Contratti di servizio di assistenza sociale domiciliare;26/01/2018
47;1;0; 5.695,80 ;5.695,80;FONDAZIONE GIUSEPPE RUBBI - CASA PER ANZIANI; ;SALDO Fatt.n. 3/38  del 30/11/2017 FORNITURA PASTI PER ANZIANI;26/01/2018;1704;0;20;1;Spese correnti;3;Acquisto di beni e servizi;2;Acquisto di servizi;15;Contratti di servizio pubblico;9;Contratti di servizio di assistenza sociale domiciliare;26/01/2018
48;1;0; 2.726,81 ;2.726,81;SERVIZI SOCIALI LA GOCCIA  S.C.S.A R.L.;610826186E;SALDO Fatt.n. 630/PA  del 31/12/2017 DICEMBRE 2017 ASSISTENZA DOMICILIARE ANZIANI;26/01/2018;1610;0;432;1;Spese correnti;3;Acquisto di beni e servizi;2;Acquisto di servizi;15;Contratti di servizio pubblico;9;Contratti di servizio di assistenza sociale domiciliare;26/01/2018
49;1;0; 1.617,34 ;1.617,34;SERVIZI SOCIALI LA GOCCIA  S.C.S.A R.L.;610826186E;SALDO Fatt.n. 631/PA  del 31/12/2017  ASSISTENZA SOCIALE  DICEMBRE 2017;26/01/2018;1610;0;432;1;Spese correnti;3;Acquisto di beni e servizi;2;Acquisto di servizi;15;Contratti di servizio pubblico;9;Contratti di servizio di assistenza sociale domiciliare;26/01/2018
50;1;0; 352,80 ;352,8;SERVIZI SOCIALI LA GOCCIA  S.C.S.A R.L.;Z6D1D43C27;SALDO Fatt.n. 632/PA  del 31/12/2017  ASSISTENZA SOCIALE BADANTI E ANZIANI  MESE DI DICEMBRE 2017 PROGETTO VESTA DET 37 08/02/2017;26/01/2018;1660;0;53;1;Spese correnti;3;Acquisto di beni e servizi;2;Acquisto di servizi;11;Prestazioni professionali e specialistiche;2;Assistenza psicologica, sociale e religiosa;26/01/2018
51;1;0; 3.058,85 ;3.058,85;SERVIZI SOCIALI LA GOCCIA  S.C.S.A R.L.;610826186E;SALDO Fatt.n. 565/PA  del 10/12/2017 ASSISTENZA DOMICILIARE ANZIANI;26/01/2018;1610;0;432;1;Spese correnti;3;Acquisto di beni e servizi;2;Acquisto di servizi;15;Contratti di servizio pubblico;9;Contratti di servizio di assistenza sociale domiciliare;26/01/2018
52;1;0; 1.549,48 ;1.549,48;SERVIZI SOCIALI LA GOCCIA  S.C.S.A R.L.;610826186E;SALDO Fatt.n. 566/PA  del 10/12/2017 ASSISTENZA DOMICILIARE;26/01/2018;1610;0;432;1;Spese correnti;3;Acquisto di beni e servizi;2;Acquisto di servizi;15;Contratti di servizio pubblico;9;Contratti di servizio di assistenza sociale domiciliare;26/01/2018
53;1;0; 720,00 ;720;AMESCI;ZEF20F75DD;SALDO Fatt.n. FATTPA 8_18  del 10/01/2018 SUPPORTO PER PROGETTAZIONE ANNO 2017;26/01/2018;26;0;359;1;Spese correnti;3;Acquisto di beni e servizi;2;Acquisto di servizi;99;Altri servizi;999;Altri servizi diversi n.a.c.;26/01/2018
54;1;0; 777,81 ;777,81;BERICAH S.P.A.;ZFA206A0ED;SALDO Fatt.n. 001972/PA  del 30/11/2017 MATERIALE DI LAVORO PER PERSONALE DEL SERVIZIO ASSISTENZA DOMICILIARE;31/01/2018;1704;0;323;1;Spese correnti;3;Acquisto di beni e servizi;2;Acquisto di servizi;15;Contratti di servizio pubblico;9;Contratti di servizio di assistenza sociale domiciliare;31/01/2018
55;1;0; 16,99 ;16,99;AUTOLAVAGGIO MILLE LUNE DI COSTACURTA SIMONE;Z9C1E581FD;SALDO Fatt.n. FATTPA 2_17  del 31/10/2017 LAVAGGIO AUTOMEZZI SERVIZI SOCIALI;31/01/2018;233;0;157;1;Spese correnti;3;Acquisto di beni e servizi;2;Acquisto di servizi;9;Manutenzione ordinaria e riparazioni;1;Manutenzione ordinaria e riparazioni di mezzi di trasporto ad uso civile, di sicurezza e ordine pubblico;31/01/2018
56;1;0; 319,00 ;1.769,00;GIES S.R.L.;Z051E61B6C;SALDO Fatt.n. 830/A  del 22/08/2017 Servizio di importazione dati patrimoniali - SALDO;31/01/2018;264;0;166;1;Spese correnti;3;Acquisto di beni e servizi;2;Acquisto di servizi;19;Servizi informatici e di telecomunicazioni;1;Gestione e manutenzione applicazioni;31/01/2018
56;2;0; 1.450,00 ;1.769,00;GIES S.R.L.;Z051E61B6C;ACCONTO Fatt.n. 830/A  del 22/08/2017 Servizio di importazione dati patrimoniali - SALDO;31/01/2018;264;0;166;1;Spese correnti;3;Acquisto di beni e servizi;2;Acquisto di servizi;19;Servizi informatici e di telecomunicazioni;1;Gestione e manutenzione applicazioni;31/01/2018
57;1;0; 110,00 ;610;GIES S.R.L.;Z051E61B6C;SALDO Fatt.n. 1169/A  del 16/11/2017 servizio di redazione files su immobili anno 2016;31/01/2018;264;0;166;1;Spese correnti;3;Acquisto di beni e servizi;2;Acquisto di servizi;19;Servizi informatici e di telecomunicazioni;1;Gestione e manutenzione applicazioni;31/01/2018
57;2;0; 500,00 ;610;GIES S.R.L.;Z051E61B6C;ACCONTO Fatt.n. 1169/A  del 16/11/2017 servizio di redazione files su immobili anno 2016;31/01/2018;264;0;166;1;Spese correnti;3;Acquisto di beni e servizi;2;Acquisto di servizi;19;Servizi informatici e di telecomunicazioni;1;Gestione e manutenzione applicazioni;31/01/2018
58;1;0; 6.505,00 ;6.505,00;LUNARDON GAETANO - RIST. LA ROSINA;ZF320E9379;SALDO Fatt.n. 8/PA  del 05/12/2017 PRANZO SOCIALE;31/01/2018;1703;0;357;1;Spese correnti;3;Acquisto di beni e servizi;2;Acquisto di servizi;99;Altri servizi;999;Altri servizi diversi n.a.c.;31/01/2018
59;1;0; 3.000,00 ;3.000,00;VENETO BENESSERE E CAMMINA ONLUS;Z1E1D46A83;LIQUIDAZIONE CONTRIBUTO PER PROGETTO - CAMMINA CAMMINA ANNO 2017 - CIG Z1E1D46A83;05/02/2018;1913;0;54;1;Spese correnti;4;Trasferimenti correnti;4;Trasferimenti correnti a Istituzioni Sociali Private;1;Trasferimenti correnti a Istituzioni Sociali Private;1;Trasferimenti correnti a Istituzioni Sociali Private;05/02/2018
61;1;0; 3.908,32 ;3.908,32;DE BATTISTI FRANCO; ;SALDO Fatt.n. FATTPA 1_18  del 02/01/2018 EMOLUMENTI ESERCIZIO 2017 + N. 9 ACCESSI;12/02/2018;40;0;71;1;Spese correnti;3;Acquisto di beni e servizi;2;Acquisto di servizi;1;Organi e incarichi istituzionali dell'amministrazione;8;Compensi agli organi istituzionali di revisione, di controllo ed altri incarichi istituzionali dell'amministrazione;12/02/2018
62;1;0; 5,88 ;87,35;COMUNE DI BASSANO DEL GRAPPA;0;RIMBORSO SPESE DI NOTIFICA ANNO 2017;12/02/2018;273;0;5;1;Spese correnti;4;Trasferimenti correnti;1;Trasferimenti correnti a Amministrazioni Pubbliche;2;Trasferimenti correnti a Amministrazioni Locali;3;Trasferimenti correnti a Comuni;12/02/2018
62;2;0; 11,83 ;87,35;COMUNE DI BAVENO;0;ASSUNZIONE IMPEGNO DI SPESA PER RIMBORSO SPESE DI NOTIFICA ANNO 2017;12/02/2018;273;0;5;1;Spese correnti;4;Trasferimenti correnti;1;Trasferimenti correnti a Amministrazioni Pubbliche;2;Trasferimenti correnti a Amministrazioni Locali;3;Trasferimenti correnti a Comuni;12/02/2018
62;3;0; 5,88 ;87,35;COMUNE DI CAMISANO VICENTINO;0;RIMBORSO SPESE DI NOTIFICA ANNO 2017;12/02/2018;273;0;5;1;Spese correnti;4;Trasferimenti correnti;1;Trasferimenti correnti a Amministrazioni Pubbliche;2;Trasferimenti correnti a Amministrazioni Locali;3;Trasferimenti correnti a Comuni;12/02/2018
62;4;0; 5,88 ;87,35;COMUNE DI CARMIGNANO DI BRENTA;0;ASSUNZIONE IMPEGNO DI SPESA PER RIMBORSO SPESE DI NOTIFICA ANNO 2017;12/02/2018;273;0;5;1;Spese correnti;4;Trasferimenti correnti;1;Trasferimenti correnti a Amministrazioni Pubbliche;2;Trasferimenti correnti a Amministrazioni Locali;3;Trasferimenti correnti a Comuni;12/02/2018
62;5;0; 5,88 ;87,35;COMUNE DI PADOVA;0;RIMBORSO SPESE DI NOTIFICA ANNO 2017;12/02/2018;273;0;5;1;Spese correnti;4;Trasferimenti correnti;1;Trasferimenti correnti a Amministrazioni Pubbliche;2;Trasferimenti correnti a Amministrazioni Locali;3;Trasferimenti correnti a Comuni;12/02/2018
62;6;0; 26,16 ;87,35;COMUNE DI SAN DONA' DI PIAVE;0;RIMBORSO SPESE DI NOTIFICA ANNO 2017;12/02/2018;273;0;5;1;Spese correnti;4;Trasferimenti correnti;1;Trasferimenti correnti a Amministrazioni Pubbliche;2;Trasferimenti correnti a Amministrazioni Locali;3;Trasferimenti correnti a Comuni;12/02/2018
62;7;0; 9,98 ;87,35;COMUNE DI SAREGO;0;RIMBORSO SPESE DI NOTIFICA ANNO 2017;12/02/2018;273;0;5;1;Spese correnti;4;Trasferimenti correnti;1;Trasferimenti correnti a Amministrazioni Pubbliche;2;Trasferimenti correnti a Amministrazioni Locali;3;Trasferimenti correnti a Comuni;12/02/2018
62;8;0; 5,88 ;87,35;COMUNE DI THIENE;0;RIMBORSO SPESE DI NOTIFICA ANNO 2017;12/02/2018;273;0;5;1;Spese correnti;4;Trasferimenti correnti;1;Trasferimenti correnti a Amministrazioni Pubbliche;2;Trasferimenti correnti a Amministrazioni Locali;3;Trasferimenti correnti a Comuni;12/02/2018
62;9;0; 9,98 ;87,35;COMUNE DI VICENZA;0;RIMBORSO SPESE DI NOTIFICA ANNO 2017;12/02/2018;273;0;5;1;Spese correnti;4;Trasferimenti correnti;1;Trasferimenti correnti a Amministrazioni Pubbliche;2;Trasferimenti correnti a Amministrazioni Locali;3;Trasferimenti correnti a Comuni;12/02/2018
63;1;0; 5,88 ;5,88;COMUNE DI RIVA DEL GARDA;0;RIMBORSO SPESE DI NOTIFICA ANNO 2017;12/02/2018;273;0;5;1;Spese correnti;4;Trasferimenti correnti;1;Trasferimenti correnti a Amministrazioni Pubbliche;2;Trasferimenti correnti a Amministrazioni Locali;3;Trasferimenti correnti a Comuni;12/02/2018
64;1;0; 1.100,00 ;1.100,00;ASSOCIAZIONE AMICI DEL VILLAGGIO;0;"LIQUIDAZIONE CONTRIBUTO PER COLLABORAZIONE OCCASIONALE GESTIONE DEL PROGETTO ""CI VOGLIONO BAMBINI, BAMBINE, RAGAZZI E RAGAZZE PER FAR CRESCERE UNA CITTA'"" DELLA CONFERENZA DEI SINDACI DELL'AZIENDA ULSS N. 7 PEDEMONTANA";12/02/2018;1604;0;289;1;Spese correnti;3;Acquisto di beni e servizi;2;Acquisto di servizi;15;Contratti di servizio pubblico;7;Contratti di servizio per la formazione dei cittadini;12/02/2018
65;1;0; 4.900,00 ;4.900,00;ASSOCIAZIONE GRUPPO VULCANO ONLUS;0;"LIQUIDAZIONE CONTRIBUTO PER INCARICHI DI COLLABORAZIONE OCCASIONALE PER LA GESTIONE DEL PROGETTO ""CI VOGLIONO BAMBINI, BAMBINE, RAGAZZI E RAGAZZE PER FAR CRESCERE UNA CITTA'"" DELLA CONFERENZA DEI SINDACI DELL'AZIENDA ULSS N. 7 PEDEMONTANA";12/02/2018;1604;0;288;1;Spese correnti;3;Acquisto di beni e servizi;2;Acquisto di servizi;15;Contratti di servizio pubblico;7;Contratti di servizio per la formazione dei cittadini;12/02/2018
66;1;0; 258,98 ;258,98;MINISTERO DELLE INFRASTRUTTURE E DEI TRASPORTI;0;CANONE ACCESSO AL SERVIZIO TELEMATICO E  INTERROGAZIONI DEGLI ARCHIVI DELLA D.T.T. 4^ TRIMESTRE 2017;12/02/2018;502;0;307;1;Spese correnti;3;Acquisto di beni e servizi;2;Acquisto di servizi;5;Utenze e canoni;3;Accesso a banche dati e a pubblicazioni on line;12/02/2018
68;1;0; 1.190,42 ;1.190,42;MINISTERO DELLE INFRASTRUTTURE E DEI TRASPORTI;0;CANONE ANNUO 2018 - UTENZA DPR 634/94 - UTENZA SERVIZIO TELEMATICO ACCESSO AGLI ARCHIVI DELLA MOTORIZZAZIONE CIVILE.;12/02/2018;502;0;336;1;Spese correnti;3;Acquisto di beni e servizi;2;Acquisto di servizi;5;Utenze e canoni;3;Accesso a banche dati e a pubblicazioni on line;12/02/2018
71;1;0; 200,00 ;200;ASSOCIAZIONE ITALIANA SOCCORRITORI - sez. MAROSTICA;0;CORSO DI FORMAZIONE RIANIMAZIONE CARDIOPOLMONARE CON L'UTILIZZO DEL DEFRIBRILLATORE;12/02/2018;501;0;350;1;Spese correnti;3;Acquisto di beni e servizi;2;Acquisto di servizi;4;Acquisto di servizi per formazione e addestramento del personale dell'ente;4;Acquisto di servizi per formazione obbligatoria;12/02/2018
73;1;0; 3.695,79 ;3.695,79;COMUNE DI MAROSTICA; ;RIMBORSO AL COMUNE DI MAROSTICA DI SPESE POSTALI SOSTENUTE PER CONTO DELL'UNIONE MONTANA MAROSTICENSE ANNO 2017.;12/02/2018;267;0;111;1;Spese correnti;3;Acquisto di beni e servizi;2;Acquisto di servizi;16;Servizi amministrativi;2;Spese postali;12/02/2018
74;1;0; 25,99 ;59,98;AUTOLAVAGGIO MILLE LUNE DI COSTACURTA SIMONE;Z9C1E581FD;PULIZIA AUTOMEZZI POLIZIA LOCALE;14/02/2018;233;0;157;1;Spese correnti;3;Acquisto di beni e servizi;2;Acquisto di servizi;9;Manutenzione ordinaria e riparazioni;1;Manutenzione ordinaria e riparazioni di mezzi di trasporto ad uso civile, di sicurezza e ordine pubblico;14/02/2018
74;2;0; 33,99 ;59,98;AUTOLAVAGGIO MILLE LUNE DI COSTACURTA SIMONE;Z9C1E581FD;PULIZIA AUTOMEZZI SERVIZI SOCIALI;14/02/2018;233;0;157;1;Spese correnti;3;Acquisto di beni e servizi;2;Acquisto di servizi;9;Manutenzione ordinaria e riparazioni;1;Manutenzione ordinaria e riparazioni di mezzi di trasporto ad uso civile, di sicurezza e ordine pubblico;14/02/2018
75;1;0; 75,00 ;75;GRUPPO ABELE PERIODICI;ZA12140208;ABBONAMENTO ALLA RIVISTA ANIMAZIONE SOCIALE - CIG ZA12140208;14/02/2018;1602;0;408;1;Spese correnti;3;Acquisto di beni e servizi;1;Acquisto di beni;1;Giornali, riviste e pubblicazioni;1;Giornali e riviste;14/02/2018
76;1;0; 304,00 ;304;IL GIORNALE DI VICENZA SOC. ATHESIS S.P.A.;Z402140A66;ABBONAMENTO AL QUOTIDIANO IL GIORNALE DI VICENZA - CIG Z402140A66;14/02/2018;1602;0;409;1;Spese correnti;3;Acquisto di beni e servizi;1;Acquisto di beni;1;Giornali, riviste e pubblicazioni;1;Giornali e riviste;14/02/2018
77;1;0; 58,40 ;58,4;EDIZIONI CENTRO STUDI ERICKSON SPA - SEZIONE RIVISTE;Z542140AE3;SALDO Fatt.n. 573  del 21/02/2018 Fattura PA;14/02/2018;1602;0;410;1;Spese correnti;3;Acquisto di beni e servizi;1;Acquisto di beni;1;Giornali, riviste e pubblicazioni;1;Giornali e riviste;14/02/2018
78;1;0; 89,00 ;89;PROSPETTIVE SOCIALI E SANITARIE - IST.PER LA RICERCA SO;Z442140B7A;ABBONAMENTO ALLA RIVISTA PROSPETTIVE SOCIALI E SANITARIE - CIG Z442140B7A;14/02/2018;1602;0;411;1;Spese correnti;3;Acquisto di beni e servizi;1;Acquisto di beni;1;Giornali, riviste e pubblicazioni;1;Giornali e riviste;14/02/2018
79;1;0; 99,00 ;99;MAGGIOLI SPA;ZF721409B8;ABBONAMENTO ALLA RIVISTA WELFARE OGGI - CIG ZF721409B8;14/02/2018;1602;0;412;1;Spese correnti;3;Acquisto di beni e servizi;1;Acquisto di beni;1;Giornali, riviste e pubblicazioni;1;Giornali e riviste;14/02/2018
80;1;0;-1.626,74 ;364,53;SERVIZI SOCIALI LA GOCCIA  S.C.S.A R.L.;Z6D1D43C27;SALDO Fatt.n. 476/PA  del 20/10/2017 STORNO FATTURA N.342 DEL 10/07/17 ASS.SOC.BADANTI E ANZIANI;14/02/2018;1660;0;53;1;Spese correnti;3;Acquisto di beni e servizi;2;Acquisto di servizi;11;Prestazioni professionali e specialistiche;2;Assistenza psicologica, sociale e religiosa;14/02/2018
80;2;0;-572,04 ;364,53;SERVIZI SOCIALI LA GOCCIA  S.C.S.A R.L.;Z6D1D43C27;SALDO Fatt.n. 477/PA  del 20/10/2017 STORNO FATTURA 428 DEL 20/09/17;14/02/2018;1660;0;53;1;Spese correnti;3;Acquisto di beni e servizi;2;Acquisto di servizi;11;Prestazioni professionali e specialistiche;2;Assistenza psicologica, sociale e religiosa;14/02/2018
80;3;0; 264,60 ;364,53;SERVIZI SOCIALI LA GOCCIA  S.C.S.A R.L.;Z6D1D43C27;SALDO Fatt.n. 525/PA  del 28/11/2017 ASSISTENZA SOCIALE BADANTI E ANZIONI MESE OTTOBRE 2017;14/02/2018;1660;0;53;1;Spese correnti;3;Acquisto di beni e servizi;2;Acquisto di servizi;11;Prestazioni professionali e specialistiche;2;Assistenza psicologica, sociale e religiosa;14/02/2018
80;4;0; 2.298,71 ;364,53;SERVIZI SOCIALI LA GOCCIA  S.C.S.A R.L.;Z6D1D43C27;SALDO Fatt.n. 475/PA  del 20/10/2017 assistenza sociale badanti e anziani periodo  gen-sett 2017;14/02/2018;1660;0;53;1;Spese correnti;3;Acquisto di beni e servizi;2;Acquisto di servizi;11;Prestazioni professionali e specialistiche;2;Assistenza psicologica, sociale e religiosa;14/02/2018
81;1;0; 800,00 ;800;SCALCON BRUNO;0;LIQUIDAZIONE  INCARICO PERSONALE PER ATTIVAZIONE IMPIANTI ANTIGRANDINE CAMPAGNA SPERIMENTALE 2017;14/02/2018;1410;0;217;1;Spese correnti;3;Acquisto di beni e servizi;2;Acquisto di servizi;99;Altri servizi;999;Altri servizi diversi n.a.c.;14/02/2018
82;1;0; 1.900,00 ;1.900,00;POZZA BORTOLO;0;LIQUIDAZIONE INCARICO PERSONALE PER ATTIVAZIONE IMPIANTI ANTIGRANDINE CAMPAGNA SPERIMENTALE 2017;14/02/2018;1410;0;169;1;Spese correnti;3;Acquisto di beni e servizi;2;Acquisto di servizi;99;Altri servizi;999;Altri servizi diversi n.a.c.;14/02/2018
83;1;0; 1.112,03 ;1.112,03;F.A.P. DI MARCOLONGO LUIGI & C. SNC;ZA121866D3;SALDO Fatt.n. 7  del 29/01/2018 FORNITURA ABBIGLIAMENTO POLIZIA LOCALE;14/02/2018;403;0;437;1;Spese correnti;3;Acquisto di beni e servizi;1;Acquisto di beni;2;Altri beni di consumo;4;Vestiario;14/02/2018
84;1;0; 62,22 ;62,22;EDIT GRAF DI ISEPPI STEFANO;ZCD2137DF5;SALDO Fatt.n. 2/1067  del 21/12/2017 FORNITURA DI TIMBRI PER AGENTI ED UFFICIO;14/02/2018;401;0;362;1;Spese correnti;3;Acquisto di beni e servizi;1;Acquisto di beni;2;Altri beni di consumo;1;Carta, cancelleria e stampati;14/02/2018
85;1;0; 7.625,00 ;7.625,00;FUTURA VEICOLI SPECIALI DI STEFANI GEORGES;Z2920AB5A9;SALDO Fatt.n. 4  del 24/01/2018 Allestimento Fiat Tipo 5 Porte Gpl per servizio polizia locale;14/02/2018;2210;0;352;2;Spese in conto capitale;2;Investimenti fissi lordi e acquisto di terreni;1;Beni materiali;5;Attrezzature;999;Attrezzature n.a.c.;14/02/2018
86;1;0; 1.317,60 ;1.317,60;G.A. EUROPA AZZARONI S.A.S.;ZB5211C233;SALDO Fatt.n. 85  del 31/01/2018 VS. ORDINE MEPA COMANDO POLIZIA LOCALE;14/02/2018;506;0;367;1;Spese correnti;3;Acquisto di beni e servizi;2;Acquisto di servizi;9;Manutenzione ordinaria e riparazioni;4;Manutenzione ordinaria e riparazioni di impianti e macchinari;14/02/2018
87;1;0; 225,00 ;225;ANAC - AUTORITA' NAZIONALE ANTICORRUZIONE; ;"CENTRALE UNICA DI COMMITTENZA - GARA PER I SERVIZI ASSICURATIVI DEL COMUNE DI MAROSTICA DAL 31/12/2017 AL 31/12/2020, PROROGABILE AL 30/6/2021. INDIZIONE DI GARA PER N. 7 LOTTI (CIG LOTTO 1: 7195836FB4; LOTTO 2: 719583815F; LOTTO 3: 71958424AB; LOTTO";15/02/2018;140;0;286;1;Spese correnti;3;Acquisto di beni e servizi;2;Acquisto di servizi;16;Servizi amministrativi;999;Altre spese per servizi amministrativi;15/02/2018
88;1;0; 225,00 ;225;ANAC - AUTORITA' NAZIONALE ANTICORRUZIONE;7288762CAB;DITTA SERENISSIMA RISTORAZIONE S.P.A, VIALE DELLA SCIENZA, 26 VICENZA, P. IVA/C.F. 01617950249 PER L'AFFIDAMENTO DEL SERVIZIO DI PREPARAZIONE, CONFEZIONAMENTO E FORNITURA DEI PASTI CALDI DA CONSEGNARE A DOMICILIO;15/02/2018;201;0;32;1;Spese correnti;3;Acquisto di beni e servizi;2;Acquisto di servizi;16;Servizi amministrativi;999;Altre spese per servizi amministrativi;15/02/2018
89;1;0; 500,00 ;500;AZIENDA TERRITORIALE EDILIZIA RESIDENZIALE PROV.VICENZA; ;CONTRIBUTO X SOSTEGNO FAMIGLIA BISOGNOSA DA PARTE DELL' ASSOCIAZIONE NAZIONALE ALPINI;15/02/2018;1906;0;398;1;Spese correnti;4;Trasferimenti correnti;2;Trasferimenti correnti a Famiglie;2;Interventi assistenziali;999;Altri assegni e sussidi assistenziali;15/02/2018
90;1;0; 167,80 ;167,8;PERIN MICHELE;0;RIMBORSO ACQUISTO SCARPE PER GLI APPARTENENTI AL CORPO P.L. ANNO 2017;15/02/2018;403;0;130;1;Spese correnti;3;Acquisto di beni e servizi;1;Acquisto di beni;2;Altri beni di consumo;4;Vestiario;15/02/2018
91;1;0; 12,19 ;12,19;PERIN MICHELE;0;RIMBORSO ACQUISTO CALZATURE PER  AGENTI APPARTENTI AL COMANDO POLIZIA LOCALE.;15/02/2018;403;0;313;1;Spese correnti;3;Acquisto di beni e servizi;1;Acquisto di beni;2;Altri beni di consumo;4;Vestiario;15/02/2018
92;1;0; 49,00 ;114;CRESTANI VALTER;0;RIMBORSO ACQUISTO SCARPE PER GLI AGENTI/UFFICIALI APPARTENENTI AL CORPO DI POLIZIA LOCALE- ANNO 2018;15/02/2018;403;0;24;1;Spese correnti;3;Acquisto di beni e servizi;1;Acquisto di beni;2;Altri beni di consumo;4;Vestiario;15/02/2018
92;2;0; 65,00 ;114;LOVATO ELEONORA;0;RIMBORSO ACQUISTO SCARPE PER GLI AGENTI/UFFICIALI APPARTENENTI AL CORPO DI POLIZIA LOCALE- ANNO 2018;15/02/2018;403;0;24;1;Spese correnti;3;Acquisto di beni e servizi;1;Acquisto di beni;2;Altri beni di consumo;4;Vestiario;15/02/2018
93;1;0; 1.500,00 ;1.500,00;ASS. DI VOLONT.CORPO AGENTI FAUNISTICI AMBIENTALI ZOO;0;LIQUIDAZIONE A FAVORE DELLE GUARDIE GIURATE APPARTENENTI ALL'ASSOCIAZIONE CORPO AGENTI FAUNISTICI AMBIENTALI ZOOFILI  DELL'ASSOCIAZIONE ITALCACCIA -ANNO 2017;15/02/2018;1429;0;225;1;Spese correnti;4;Trasferimenti correnti;4;Trasferimenti correnti a Istituzioni Sociali Private;1;Trasferimenti correnti a Istituzioni Sociali Private;1;Trasferimenti correnti a Istituzioni Sociali Private;15/02/2018
94;1;0; 4,98 ;4,98;PREFETTURA DI VICENZA; ;PAGAMENTO MODELLI IN BIANCO PATENTI DI SERVIZIO AI SENSI DELLART. 139 CDS- PREFETTURA DI VICENZA;15/02/2018;401;0;25;1;Spese correnti;3;Acquisto di beni e servizi;1;Acquisto di beni;2;Altri beni di consumo;1;Carta, cancelleria e stampati;15/02/2018
95;1;0; 475,80 ;475,8;SECOM S.R.L.;Z8B2172820;SALDO Fatt.n. 000007  del 18/01/2018 ACQUISTO DISPOSITIVO SMARTFAD + LICENZA E-FAD;15/02/2018;401;0;427;1;Spese correnti;3;Acquisto di beni e servizi;1;Acquisto di beni;2;Altri beni di consumo;8;Strumenti tecnico-specialistici non sanitari;15/02/2018
96;1;0; 2.960,33 ;2.960,33;F.A.P. DI MARCOLONGO LUIGI & C. SNC;Z442075D25;SALDO Fatt.n. 8  del 29/01/2018 FORNITUTA ABBIGLIAMENTO POLIZIA LOCALE;15/02/2018;403;0;341;1;Spese correnti;3;Acquisto di beni e servizi;1;Acquisto di beni;2;Altri beni di consumo;4;Vestiario;15/02/2018
97;1;0; 91,66 ;191,42;NIVI CREDIT S.R.L.;ZA21ECF1B7;SALDO Fatt.n. 575E  del 31/01/2018 RIMBORSO SPESE PROCEDURA EMO;15/02/2018;509;0;200;1;Spese correnti;3;Acquisto di beni e servizi;2;Acquisto di servizi;16;Servizi amministrativi;999;Altre spese per servizi amministrativi;15/02/2018
97;2;0; 99,76 ;191,42;NIVI CREDIT S.R.L.;ZA21ECF1B7;SALDO Fatt.n. 576E  del 31/01/2018 FATTURA CORRISPETTIVI SU PT;15/02/2018;509;0;200;1;Spese correnti;3;Acquisto di beni e servizi;2;Acquisto di servizi;16;Servizi amministrativi;999;Altre spese per servizi amministrativi;15/02/2018
98;1;0; 891,50 ;891,5;OMESSO NOMINATIVO NEL RISPETTO DELLA NORMATIVA SULLA PROTEZIONE DATI PERSONALI; ;FONDO SOCIALE A.T.E.R. PER ASSEGNATARI DI ALLOGGI DI E.R.P. ANNO 2015.;15/02/2018;1903;0;237;1;Spese correnti;4;Trasferimenti correnti;2;Trasferimenti correnti a Famiglie;2;Interventi assistenziali;999;Altri assegni e sussidi assistenziali;15/02/2018
99;1;0; 72,75 ;72,75;OMESSO NOMINATIVO NEL RISPETTO DELLA NORMATIVA SULLA PROTEZIONE DATI PERSONALI; ;UTILIZZO FONDO SOCIALE A.T.E.R. PER ASSEGNATARI DI ALLOGGI E CONCORRENTI ALL'ASSEGNAZIONE IN GRAVI DIFFICOLTA' ECONOMICHE FS20180001 EFS201800002;15/02/2018;1903;0;340;1;Spese correnti;4;Trasferimenti correnti;2;Trasferimenti correnti a Famiglie;2;Interventi assistenziali;999;Altri assegni e sussidi assistenziali;15/02/2018
100;1;0; 189,10 ;189,1;RIELLO DR.SSA ELENA;Z5A21A0AF0;SALDO Fatt.n. 1 / FE  del 23/01/2018 FORNITURA CAMICI STERILI MONOUSO;15/02/2018;1704;0;4;1;Spese correnti;3;Acquisto di beni e servizi;2;Acquisto di servizi;15;Contratti di servizio pubblico;9;Contratti di servizio di assistenza sociale domiciliare;15/02/2018
103;1;0;-131,76 ;239,12;EDIT GRAF DI ISEPPI STEFANO;ZCB221E6EC;SALDO Fatt.n. 2/116  del 20/02/2018 STORNO TOTALE PER ERRATA FATTURAZIONE FATTURA 47/2016;26/02/2018;250;0;99;1;Spese correnti;3;Acquisto di beni e servizi;1;Acquisto di beni;2;Altri beni di consumo;1;Carta, cancelleria e stampati;26/02/2018
103;2;0;-107,36 ;239,12;EDIT GRAF DI ISEPPI STEFANO;ZCB221E6EC;SALDO Fatt.n. 2/117  del 20/02/2018 STORNO TOTALE PER ERRATA FATTURAZIONE FATTURA 94/2016;26/02/2018;250;0;99;1;Spese correnti;3;Acquisto di beni e servizi;1;Acquisto di beni;2;Altri beni di consumo;1;Carta, cancelleria e stampati;26/02/2018
103;3;0; 107,36 ;239,12;EDIT GRAF DI ISEPPI STEFANO;ZCB221E6EC;SALDO Fatt.n. 2/94  del 29/01/2016 FORNITURA REGISTRO CONTRATTI RILEGATO;26/02/2018;250;0;99;1;Spese correnti;3;Acquisto di beni e servizi;1;Acquisto di beni;2;Altri beni di consumo;1;Carta, cancelleria e stampati;26/02/2018
103;4;0; 131,76 ;239,12;EDIT GRAF DI ISEPPI STEFANO;ZCB221E6EC;SALDO Fatt.n. 2/47  del 21/01/2016 FORNITURA BUSTE;26/02/2018;250;0;99;1;Spese correnti;3;Acquisto di beni e servizi;1;Acquisto di beni;2;Altri beni di consumo;1;Carta, cancelleria e stampati;26/02/2018
103;5;0; 239,12 ;239,12;EDIT GRAF DI ISEPPI STEFANO;ZCB221E6EC;SALDO Fatt.n. 2/118  del 20/02/2018 FORNITURA REGISTRO CONTRATTI E BUSTE;26/02/2018;250;0;99;1;Spese correnti;3;Acquisto di beni e servizi;1;Acquisto di beni;2;Altri beni di consumo;1;Carta, cancelleria e stampati;26/02/2018
104;1;0; 142,00 ;142;OMESSO NOMINATIVO NEL RISPETTO DELLA NORMATIVA SULLA PROTEZIONE DATI PERSONALI; ;SALDO Fatt.n. 2/13/3  del 31/01/2018 PROGETTO HOME CARE PREMIUM DICEMBRE 2017 ;26/02/2018;1704;0;257;1;Spese correnti;3;Acquisto di beni e servizi;2;Acquisto di servizi;15;Contratti di servizio pubblico;8;Contratti di servizio di assistenza sociale residenziale e semiresidenziale;26/02/2018
105;1;0; 513,02 ;513,02;SCANAGATTA CARBURANTI SRL;Z1221C7BB3;SALDO Fatt.n. V3  2  del 31/01/2018 FORNITURA CARBURANTE AUTOMEZZI POLIZIA LOCALE GENNAIO 2018;26/02/2018;400;0;44;1;Spese correnti;3;Acquisto di beni e servizi;1;Acquisto di beni;2;Altri beni di consumo;2;Carburanti, combustibili e lubrificanti;26/02/2018
106;1;0; 436,67 ;436,67;SCANAGATTA CARBURANTI SRL;Z1221C7BB3;SALDO Fatt.n. V3  3  del 31/01/2018 FORNITURA CARBURANTE AUTOMEZZI SERVIZI SOCIALI GENNAIO 2018;26/02/2018;1599;0;45;1;Spese correnti;3;Acquisto di beni e servizi;1;Acquisto di beni;2;Altri beni di consumo;2;Carburanti, combustibili e lubrificanti;26/02/2018
107;1;0; 408,70 ;408,7;SOLUZIONE UFFICIO S.R.L.;Z0418F1DC4;SALDO Fatt.n. 4535/PA/2017  del 05/07/2017 CANONE NOLEGGIO FOTOCOPIATORE LUGLIO-SETTEMBRE 2017;26/02/2018;264;0;87;1;Spese correnti;3;Acquisto di beni e servizi;2;Acquisto di servizi;19;Servizi informatici e di telecomunicazioni;9;Servizi per le postazioni di lavoro e relativa manutenzione;26/02/2018
108;1;0; 253,00 ;253;PIANEZZOLA SNC;Z221FBED20;SALDO Fatt.n. 000012 /PA  del 31/12/2017 TRASPORTO DI PERSONE PER PRANZO SOCIALE-MAROSTICA;26/02/2018;1703;0;269;1;Spese correnti;3;Acquisto di beni e servizi;2;Acquisto di servizi;99;Altri servizi;999;Altri servizi diversi n.a.c.;26/02/2018
109;1;0; 352,80 ;352,8;SERVIZI SOCIALI LA GOCCIA  S.C.S.A R.L.;Z6D1D43C27;SALDO Fatt.n. 573/PA  del 10/12/2017 MESE DI NOVEMBRE 2017 PROGETTO VESTA: ASSISTENZA SOCIALE BADANTI E ANZIANI;26/02/2018;1660;0;53;1;Spese correnti;3;Acquisto di beni e servizi;2;Acquisto di servizi;11;Prestazioni professionali e specialistiche;2;Assistenza psicologica, sociale e religiosa;26/02/2018
110;1;0; 256,20 ;256,2;TIPOGRAFIA GRAFICHE LEONI S.A.S. DI LEONI LUCIO & C.;ZDB219BFE5;SALDO Fatt.n. 2/PA  del 31/01/2018 FORNITURA MANIFESTI PER MANIFESTAZIONI ANZIANI;26/02/2018;1703;0;3;1;Spese correnti;3;Acquisto di beni e servizi;2;Acquisto di servizi;99;Altri servizi;999;Altri servizi diversi n.a.c.;26/02/2018
111;1;0; 1.132,16 ;1.132,16;S.A.I.E.S. SRL;Z9E1B087B4;SALDO Fatt.n. 235  del 22/12/2017 ATTIVITA' TECNICO SISTEMISTICA;26/02/2018;264;0;266;1;Spese correnti;3;Acquisto di beni e servizi;2;Acquisto di servizi;19;Servizi informatici e di telecomunicazioni;1;Gestione e manutenzione applicazioni;26/02/2018
112;1;0; 530,70 ;530,7;S.A.I.E.S. SRL;ZCC0FBEE55;SALDO Fatt.n. 236  del 22/12/2017 ATTIVITA' TECNICO SISTEMISTICA;26/02/2018;264;0;55;1;Spese correnti;3;Acquisto di beni e servizi;2;Acquisto di servizi;19;Servizi informatici e di telecomunicazioni;5;Servizi per i sistemi e relativa manutenzione;26/02/2018
113;1;0; 530,70 ;530,7;S.A.I.E.S. SRL;Z75170CA7A;SALDO Fatt.n. 237  del 22/12/2017 ATTIVITA' TECNICO SISTEMISTICA;26/02/2018;264;0;226;1;Spese correnti;3;Acquisto di beni e servizi;2;Acquisto di servizi;19;Servizi informatici e di telecomunicazioni;4;Servizi di rete per trasmissione dati e VoIP e relativa manutenzione;26/02/2018
114;1;0; 141,52 ;141,52;S.A.I.E.S. SRL;ZF514CD700;SALDO Fatt.n. 238  del 22/12/2017 ATTIVITA' TECNICO SISTEMISTICA;26/02/2018;264;0;59;1;Spese correnti;3;Acquisto di beni e servizi;2;Acquisto di servizi;19;Servizi informatici e di telecomunicazioni;9;Servizi per le postazioni di lavoro e relativa manutenzione;26/02/2018
115;1;0; 1.935,23 ;1.935,23;S.A.I.E.S. SRL;Z19204FD6E;SALDO Fatt.n. 8  del 08/01/2018 SERVIZIO AFM, MANAGEMENT, ASSISTENZA TELEFONICA, PROTOCOLLO SICUREZZA;26/02/2018;264;0;322;1;Spese correnti;3;Acquisto di beni e servizi;2;Acquisto di servizi;19;Servizi informatici e di telecomunicazioni;1;Gestione e manutenzione applicazioni;26/02/2018
116;1;0; 1.098,00 ;1.098,00;INSIEL MERCATO S.P.A.;Z0D20A5FAD;SALDO Fatt.n. 014/11  del 08/01/2018 FT.VEND. COMMESSA 41876 CARTA DI IDENTITA' ELETTRONICA;26/02/2018;264;0;455;1;Spese correnti;3;Acquisto di beni e servizi;2;Acquisto di servizi;19;Servizi informatici e di telecomunicazioni;1;Gestione e manutenzione applicazioni;26/02/2018
117;1;0; 574,93 ;574,93;CITTA' INFORMATICA MAROSTICA BROLLO FLAVIO;Z121CC040D;SALDO Fatt.n. FATTPA 30_17  del 29/12/2017 SERVIZIO DI COLLABORAZIONE PER INTERVENTI SU POSTAZIONI;26/02/2018;264;0;415;1;Spese correnti;3;Acquisto di beni e servizi;2;Acquisto di servizi;19;Servizi informatici e di telecomunicazioni;1;Gestione e manutenzione applicazioni;26/02/2018
118;1;0; 524,10 ;524,1;EGAF EDIZIONI SRL;Z632015E3E;SALDO Fatt.n. 2018 V VS2 464 0  del 03/01/2018 PRONTUARI VIOLAZIONI AL COICE DELLA STRADA;26/02/2018;502;0;308;1;Spese correnti;3;Acquisto di beni e servizi;2;Acquisto di servizi;5;Utenze e canoni;3;Accesso a banche dati e a pubblicazioni on line;26/02/2018
119;1;0; 5,88 ;15,27;COMUNE DI CARTIGLIANO; ;RIMBORSO SPESE DI NOTIFICA;26/02/2018;273;0;5;1;Spese correnti;4;Trasferimenti correnti;1;Trasferimenti correnti a Amministrazioni Pubbliche;2;Trasferimenti correnti a Amministrazioni Locali;3;Trasferimenti correnti a Comuni;26/02/2018
119;2;0; 9,39 ;15,27;COMUNE DI FIRENZE;0;ASSUNZIONE IMPEGNO DI SPESA PER RIMBORSO SPESE DI NOTIFICA ANNO 2017;26/02/2018;273;0;5;1;Spese correnti;4;Trasferimenti correnti;1;Trasferimenti correnti a Amministrazioni Pubbliche;2;Trasferimenti correnti a Amministrazioni Locali;3;Trasferimenti correnti a Comuni;26/02/2018
120;1;0; 16,00 ;207,19;TELECOM ITALIA S.P.A. - (TIM S.P.A.);ZBB1CAAE51;SALDO Fatt.n. 8E01223875  del 06/12/2017 BOLLO SU CONTRATTO N. TELEFONICO 042411150263: 1 BIM 2018;28/02/2018;231;0;2;1;Spese correnti;3;Acquisto di beni e servizi;2;Acquisto di servizi;5;Utenze e canoni;2;Telefonia mobile;28/02/2018
120;2;0; 16,00 ;207,19;TELECOM ITALIA S.P.A. - (TIM S.P.A.);ZBB1CAAE51;SALDO Fatt.n. 8E01229834  del 06/12/2017 BOLLO SU CONTRATTO N. TELEFONICO 042411150264: 1 BIM 2018;28/02/2018;231;0;2;1;Spese correnti;3;Acquisto di beni e servizi;2;Acquisto di servizi;5;Utenze e canoni;2;Telefonia mobile;28/02/2018
120;3;0; 175,19 ;207,19;TELECOM ITALIA S.P.A. - (TIM S.P.A.); ;SALDO Fatt.n. 7X05384874  del 15/12/2017 SMART MAIL IDENTIFICATIVO CONTRATTO 8880000540158: 1 BIM 2018;28/02/2018;231;0;2;1;Spese correnti;3;Acquisto di beni e servizi;2;Acquisto di servizi;5;Utenze e canoni;2;Telefonia mobile;28/02/2018
121;1;0; 21,98 ;354,69;TELECOM ITALIA S.P.A. - (TIM S.P.A.); ;ACCONTO Fatt.n. 8E01222813  del 06/12/2017 1BIM 2018;28/02/2018;231;0;3;1;Spese correnti;3;Acquisto di beni e servizi;2;Acquisto di servizi;5;Utenze e canoni;1;Telefonia fissa;28/02/2018
121;2;0; 147,12 ;354,69;TELECOM ITALIA S.P.A. - (TIM S.P.A.); ;SALDO Fatt.n. 8E00129622  del 06/02/2018 FATTURA PERIODO DICEMBRE 2017- GENNAIO 2018 N. 042472144: 2 BIM 2018;28/02/2018;231;0;3;1;Spese correnti;3;Acquisto di beni e servizi;2;Acquisto di servizi;5;Utenze e canoni;1;Telefonia fissa;28/02/2018
121;3;0; 185,59 ;354,69;TELECOM ITALIA S.P.A. - (TIM S.P.A.); ;SALDO Fatt.n. 8E01231504  del 06/12/2017 TELEFONIA LINEA FISSA ISDN N. TELEFONICO 0424721441: PRIMO BIM 2018;28/02/2018;231;0;3;1;Spese correnti;3;Acquisto di beni e servizi;2;Acquisto di servizi;5;Utenze e canoni;1;Telefonia fissa;28/02/2018
122;1;0; 360,00 ;360;TELECOM ITALIA S.P.A. - (TIM S.P.A.);ZBB1CAAE51;SALDO Fatt.n. 8E01222813  del 06/12/2017 1BIM 2018;28/02/2018;265;0;112;1;Spese correnti;3;Acquisto di beni e servizi;2;Acquisto di servizi;19;Servizi informatici e di telecomunicazioni;4;Servizi di rete per trasmissione dati e VoIP e relativa manutenzione;28/02/2018
124;1;0; 4.759,30 ;4.759,30;VENETO BENESSERE E CAMMINA ONLUS;Z6421FD624;"GESTIONE DELL'ATTIVITA' DEI GRUPPI DI CAMMINO DEL PROGETTO ""CAMMINA CAMMINA"" ALL'ASSOCIAZIONE VENETO BENESSERE CAMMINA ONLUS - BIENNIO 2018/2019";01/03/2018;1913;0;29;1;Spese correnti;4;Trasferimenti correnti;4;Trasferimenti correnti a Istituzioni Sociali Private;1;Trasferimenti correnti a Istituzioni Sociali Private;1;Trasferimenti correnti a Istituzioni Sociali Private;01/03/2018
125;1;0;-440,00 ;440;PIANEZZOLA SNC;Z391D954DE;NOTA DI CREDITO FATTURA N. 8 DEL 25/10/2017;01/03/2018;1700;0;110;1;Spese correnti;3;Acquisto di beni e servizi;2;Acquisto di servizi;99;Altri servizi;8;Servizi di mobilita` a terzi (bus navetta, ...);01/03/2018
125;2;0; 440,00 ;440;PIANEZZOLA SNC;Z391D954DE;SALDO Fatt.n. 000008 /PA  del 25/10/2017 SERVIZIO DI TRASPORTO PERSONE A-R ABANO TERME PER SOGGIORNO CLIMATICO;01/03/2018;1700;0;110;1;Spese correnti;3;Acquisto di beni e servizi;2;Acquisto di servizi;99;Altri servizi;8;Servizi di mobilita` a terzi (bus navetta, ...);01/03/2018
125;3;0; 440,00 ;440;PIANEZZOLA SNC;Z391D954DE;SALDO Fatt.n. 000011 /PA  del 30/11/2017 TRASPORTO PERSONE AD ABANO IN DATA 15/10/2017 E 22/10/2017 CIG: Z391D954DE 2 TURNO SOGGIORNO CLIMATICO;01/03/2018;1700;0;110;1;Spese correnti;3;Acquisto di beni e servizi;2;Acquisto di servizi;99;Altri servizi;8;Servizi di mobilita` a terzi (bus navetta, ...);01/03/2018
126;1;0; 1.169,63 ;1.169,63;AUTOFFICINA ELETTRAUTO PIZZATO ENZO;ZAF1D259E7;SALDO Fatt.n. 00239  del 12/12/2017 LAVORI DI RIPARAZIONE AUTOVETTURA TARGATA CH507XL IN USO AI SERVIZI SOCIALI;01/03/2018;233;0;16;1;Spese correnti;3;Acquisto di beni e servizi;2;Acquisto di servizi;9;Manutenzione ordinaria e riparazioni;1;Manutenzione ordinaria e riparazioni di mezzi di trasporto ad uso civile, di sicurezza e ordine pubblico;01/03/2018
127;1;0; 244,83 ;244,83;SANTEX S.P.A.;Z0F1FC3C53;SALDO Fatt.n. C63-37011068  del 04/10/2017 Fornitura di beni e/o servizi;01/03/2018;1704;0;273;1;Spese correnti;3;Acquisto di beni e servizi;2;Acquisto di servizi;15;Contratti di servizio pubblico;9;Contratti di servizio di assistenza sociale domiciliare;01/03/2018
128;1;0; 1.183,02 ;1.183,02;ABACO SPA;Z5A1887E2F;SALDO Fatt.n. 2017140002733  del 31/12/2017 AGGIO RISCOSSIONE COATTIVA;01/03/2018;202;0;43;1;Spese correnti;3;Acquisto di beni e servizi;2;Acquisto di servizi;3;Aggi di riscossione;999;Altri aggi di riscossione n.a.c.;01/03/2018
129;1;0;-134,20 ;134,2;MABI COMUNICAZIONE DI BISINELLA MARA;Z791F3D164;SALDO Fatt.n. FATTPA 2_18  del 01/02/2018 INIZIATIVE E COORDINAMENTO DELLE ATTIVITA' A FAVORE DEI GIOVANI;01/03/2018;1717;0;229;1;Spese correnti;3;Acquisto di beni e servizi;2;Acquisto di servizi;11;Prestazioni professionali e specialistiche;999;Altre prestazioni professionali e specialistiche n.a.c.;01/03/2018
129;2;0; 134,20 ;134,2;MABI COMUNICAZIONE DI BISINELLA MARA;Z791F3D164;SALDO Fatt.n. FATTPA 13_17  del 18/12/2017 INIZIATIVE A FAVORE DEI GIOVANI;01/03/2018;1717;0;229;1;Spese correnti;3;Acquisto di beni e servizi;2;Acquisto di servizi;11;Prestazioni professionali e specialistiche;999;Altre prestazioni professionali e specialistiche n.a.c.;01/03/2018
129;3;0; 134,20 ;134,2;MABI COMUNICAZIONE DI BISINELLA MARA;Z791F3D164;SALDO Fatt.n. FATTPA 3_18  del 01/02/2018 INIZIATIVE E COORDINAMENTO DELLE ATTIVITA' A FAVORE DEI GIOVANI;01/03/2018;1717;0;229;1;Spese correnti;3;Acquisto di beni e servizi;2;Acquisto di servizi;11;Prestazioni professionali e specialistiche;999;Altre prestazioni professionali e specialistiche n.a.c.;01/03/2018
131;1;0; 130,57 ;696,97;OPEN SOFTWARE S.R.L.;ZBB2011AC7;ACCONTO Fatt.n. 000199  del 31/01/2018;05/03/2018;510;0;298;1;Spese correnti;3;Acquisto di beni e servizi;2;Acquisto di servizi;16;Servizi amministrativi;999;Altre spese per servizi amministrativi;05/03/2018
131;2;0; 566,40 ;696,97;OPEN SOFTWARE S.R.L.;ZBB2011AC7;SALDO Fatt.n. 000200  del 31/01/2018 ANTICIPAZIONE SPESE PER VALORI BOLLATI;05/03/2018;510;0;298;1;Spese correnti;3;Acquisto di beni e servizi;2;Acquisto di servizi;16;Servizi amministrativi;999;Altre spese per servizi amministrativi;05/03/2018
132;1;0; 36,13 ;254,57;OPEN SOFTWARE S.R.L.;ZBB2011AC7;SALDO Fatt.n. 000199  del 31/01/2018;05/03/2018;510;0;298;1;Spese correnti;3;Acquisto di beni e servizi;2;Acquisto di servizi;16;Servizi amministrativi;999;Altre spese per servizi amministrativi;05/03/2018
132;2;0; 218,44 ;254,57;OPEN SOFTWARE S.R.L.;ZBB2011AC7;SALDO Fatt.n. 000198  del 31/01/2018 RENDICONTAZIONE E STAMPA VERBALI;05/03/2018;510;0;298;1;Spese correnti;3;Acquisto di beni e servizi;2;Acquisto di servizi;16;Servizi amministrativi;999;Altre spese per servizi amministrativi;05/03/2018
133;1;0; 8.003,02 ;8.003,02;ADELANTE SOCIETA' COOPERATIVA SOCIALE ONLUS;6,05E+77;"ACCONTO Fatt.n. 200E  del 31/12/2017 Gestione del progetto ""Giovani Protagonisti""";05/03/2018;1717;0;12;1;Spese correnti;3;Acquisto di beni e servizi;2;Acquisto di servizi;11;Prestazioni professionali e specialistiche;2;Assistenza psicologica, sociale e religiosa;05/03/2018
134;1;0; 1.675,22 ;1.675,22;ADELANTE SOCIETA' COOPERATIVA SOCIALE ONLUS;6,05E+77;"SALDO Fatt.n. 200E  del 31/12/2017 Gestione del progetto ""Giovani Protagonisti""";05/03/2018;1717;0;366;1;Spese correnti;3;Acquisto di beni e servizi;2;Acquisto di servizi;11;Prestazioni professionali e specialistiche;999;Altre prestazioni professionali e specialistiche n.a.c.;05/03/2018
135;1;0; 227.999,00 ;227.999,00;AZIENDA ULSS N. 7 PEDEMONTANA; ;ACCONTO Fatt.n. 006/731  del 13/11/2017 QUOTE ASSOCIATIVE 2 SEMESTRE 2017;05/03/2018;1701;0;255;1;Spese correnti;3;Acquisto di beni e servizi;2;Acquisto di servizi;99;Altri servizi;3;Quote di associazioni;05/03/2018
136;1;0; 4,00 ;4;AZIENDA ULSS N. 7 PEDEMONTANA; ;SALDO Fatt.n. 006/731  del 13/11/2017 QUOTE ASSOCIATIVE 2 SEMESTRE 2017;05/03/2018;1706;0;458;1;Spese correnti;4;Trasferimenti correnti;1;Trasferimenti correnti a Amministrazioni Pubbliche;2;Trasferimenti correnti a Amministrazioni Locali;11;Trasferimenti correnti a Aziende sanitarie locali  n.a.f.;05/03/2018
137;1;0; 285,48 ;285,48;EDIT GRAF DI ISEPPI STEFANO;ZF522135FE;SALDO Fatt.n. 2/147  del 27/02/2018 FORNITURA RILEGATRICE SPIRALI MANUALE;07/03/2018;250;0;36;1;Spese correnti;3;Acquisto di beni e servizi;1;Acquisto di beni;2;Altri beni di consumo;1;Carta, cancelleria e stampati;07/03/2018
138;1;0; 90,00 ;90;FARMACIA PERUZZO CORTESE SNC di Peruzzo Nadia;Z1D20A769E;SALDO Fatt.n. 45 / FE  del 18/11/2017 FORNITURA DI MATERIALE DI LAVORO - DISPOSITIVI VARI - PER IL PERSONALE DEL SERVIZIO DI ASSISTENZA DOMICILIARE - ANNO 2017;07/03/2018;1704;0;348;1;Spese correnti;3;Acquisto di beni e servizi;2;Acquisto di servizi;15;Contratti di servizio pubblico;9;Contratti di servizio di assistenza sociale domiciliare;07/03/2018
139;1;0; 600,00 ;13.560,00;OMESSO NOMINATIVO NEL RISPETTO DELLA NORMATIVA SULLA PROTEZIONE DATI PERSONALI; ;LIQUIDAZIONE ICDB (Impegnative di Cura domiciliare di tipo b) 2 semestre 2017 e ICDM (di tipo m) 4 trimestre 2017;07/03/2018;1900;0;102;1;Spese correnti;4;Trasferimenti correnti;2;Trasferimenti correnti a Famiglie;2;Interventi assistenziali;999;Altri assegni e sussidi assistenziali;07/03/2018
139;2;0; 720,00 ;13.560,00;OMESSO NOMINATIVO NEL RISPETTO DELLA NORMATIVA SULLA PROTEZIONE DATI PERSONALI; ;LIQUIDAZIONE ICDB (Impegnative di Cura domiciliare di tipo b) 2 semestre 2017 e ICDM (di tipo m) 4 trimestre 2017;07/03/2018;1900;0;102;1;Spese correnti;4;Trasferimenti correnti;2;Trasferimenti correnti a Famiglie;2;Interventi assistenziali;999;Altri assegni e sussidi assistenziali;07/03/2018
139;3;0; 720,00 ;13.560,00;OMESSO NOMINATIVO NEL RISPETTO DELLA NORMATIVA SULLA PROTEZIONE DATI PERSONALI; ;LIQUIDAZIONE ICDB (Impegnative di Cura domiciliare di tipo b) 2 semestre 2017 e ICDM (di tipo m) 4 trimestre 2017;07/03/2018;1900;0;102;1;Spese correnti;4;Trasferimenti correnti;2;Trasferimenti correnti a Famiglie;2;Interventi assistenziali;999;Altri assegni e sussidi assistenziali;07/03/2018
139;4;0; 720,00 ;13.560,00;OMESSO NOMINATIVO NEL RISPETTO DELLA NORMATIVA SULLA PROTEZIONE DATI PERSONALI; ;LIQUIDAZIONE ICDB (Impegnative di Cura domiciliare di tipo b) 2 semestre 2017 e ICDM (di tipo m) 4 trimestre 2017;07/03/2018;1900;0;102;1;Spese correnti;4;Trasferimenti correnti;2;Trasferimenti correnti a Famiglie;2;Interventi assistenziali;999;Altri assegni e sussidi assistenziali;07/03/2018
139;5;0; 720,00 ;13.560,00;OMESSO NOMINATIVO NEL RISPETTO DELLA NORMATIVA SULLA PROTEZIONE DATI PERSONALI; ;LIQUIDAZIONE ICDB (Impegnative di Cura domiciliare di tipo b) 2 semestre 2017 e ICDM (di tipo m) 4 trimestre 2017;07/03/2018;1900;0;102;1;Spese correnti;4;Trasferimenti correnti;2;Trasferimenti correnti a Famiglie;2;Interventi assistenziali;999;Altri assegni e sussidi assistenziali;07/03/2018
139;6;0; 720,00 ;13.560,00;OMESSO NOMINATIVO NEL RISPETTO DELLA NORMATIVA SULLA PROTEZIONE DATI PERSONALI; ;LIQUIDAZIONE ICDB (Impegnative di Cura domiciliare di tipo b) 2 semestre 2017 e ICDM (di tipo m) 4 trimestre 2017;07/03/2018;1900;0;102;1;Spese correnti;4;Trasferimenti correnti;2;Trasferimenti correnti a Famiglie;2;Interventi assistenziali;999;Altri assegni e sussidi assistenziali;07/03/2018
139;7;0; 120,00 ;13.560,00;OMESSO NOMINATIVO NEL RISPETTO DELLA NORMATIVA SULLA PROTEZIONE DATI PERSONALI; ;LIQUIDAZIONE ICDB (Impegnative di Cura domiciliare di tipo b) 2 semestre 2017 e ICDM (di tipo m) 4 trimestre 2017;07/03/2018;1900;0;102;1;Spese correnti;4;Trasferimenti correnti;2;Trasferimenti correnti a Famiglie;2;Interventi assistenziali;999;Altri assegni e sussidi assistenziali;07/03/2018
139;8;0; 720,00 ;13.560,00;OMESSO NOMINATIVO NEL RISPETTO DELLA NORMATIVA SULLA PROTEZIONE DATI PERSONALI; ;LIQUIDAZIONE ICDB (Impegnative di Cura domiciliare di tipo b) 2 semestre 2017 e ICDM (di tipo m) 4 trimestre 2017;07/03/2018;1900;0;102;1;Spese correnti;4;Trasferimenti correnti;2;Trasferimenti correnti a Famiglie;2;Interventi assistenziali;999;Altri assegni e sussidi assistenziali;07/03/2018
139;9;0; 720,00 ;13.560,00;OMESSO NOMINATIVO NEL RISPETTO DELLA NORMATIVA SULLA PROTEZIONE DATI PERSONALI; ;LIQUIDAZIONE ICDB (Impegnative di Cura domiciliare di tipo b) 2 semestre 2017 e ICDM (di tipo m) 4 trimestre 2017;07/03/2018;1900;0;102;1;Spese correnti;4;Trasferimenti correnti;2;Trasferimenti correnti a Famiglie;2;Interventi assistenziali;999;Altri assegni e sussidi assistenziali;07/03/2018
139;10;0; 720,00 ;13.560,00;OMESSO NOMINATIVO NEL RISPETTO DELLA NORMATIVA SULLA PROTEZIONE DATI PERSONALI; ;LIQUIDAZIONE ICDB (Impegnative di Cura domiciliare di tipo b) 2 semestre 2017 e ICDM (di tipo m) 4 trimestre 2017;07/03/2018;1900;0;102;1;Spese correnti;4;Trasferimenti correnti;2;Trasferimenti correnti a Famiglie;2;Interventi assistenziali;999;Altri assegni e sussidi assistenziali;07/03/2018
139;11;0; 120,00 ;13.560,00;OMESSO NOMINATIVO NEL RISPETTO DELLA NORMATIVA SULLA PROTEZIONE DATI PERSONALI; ;LIQUIDAZIONE ICDB (Impegnative di Cura domiciliare di tipo b) 2 semestre 2017 e ICDM (di tipo m) 4 trimestre 2017;07/03/2018;1900;0;102;1;Spese correnti;4;Trasferimenti correnti;2;Trasferimenti correnti a Famiglie;2;Interventi assistenziali;999;Altri assegni e sussidi assistenziali;07/03/2018
139;12;0; 720,00 ;13.560,00;OMESSO NOMINATIVO NEL RISPETTO DELLA NORMATIVA SULLA PROTEZIONE DATI PERSONALI; ;LIQUIDAZIONE ICDB (Impegnative di Cura domiciliare di tipo b) 2 semestre 2017 e ICDM (di tipo m) 4 trimestre 2017;07/03/2018;1900;0;102;1;Spese correnti;4;Trasferimenti correnti;2;Trasferimenti correnti a Famiglie;2;Interventi assistenziali;999;Altri assegni e sussidi assistenziali;07/03/2018
139;13;0; 720,00 ;13.560,00;OMESSO NOMINATIVO NEL RISPETTO DELLA NORMATIVA SULLA PROTEZIONE DATI PERSONALI; ;LIQUIDAZIONE ICDB (Impegnative di Cura domiciliare di tipo b) 2 semestre 2017 e ICDM (di tipo m) 4 trimestre 2017;07/03/2018;1900;0;102;1;Spese correnti;4;Trasferimenti correnti;2;Trasferimenti correnti a Famiglie;2;Interventi assistenziali;999;Altri assegni e sussidi assistenziali;07/03/2018
139;14;0; 720,00 ;13.560,00;OMESSO NOMINATIVO NEL RISPETTO DELLA NORMATIVA SULLA PROTEZIONE DATI PERSONALI; ;LIQUIDAZIONE ICDB (Impegnative di Cura domiciliare di tipo b) 2 semestre 2017 e ICDM (di tipo m) 4 trimestre 2017;07/03/2018;1900;0;102;1;Spese correnti;4;Trasferimenti correnti;2;Trasferimenti correnti a Famiglie;2;Interventi assistenziali;999;Altri assegni e sussidi assistenziali;07/03/2018
139;15;0; 720,00 ;13.560,00;OMESSO NOMINATIVO NEL RISPETTO DELLA NORMATIVA SULLA PROTEZIONE DATI PERSONALI; ;LIQUIDAZIONE ICDB (Impegnative di Cura domiciliare di tipo b) 2 semestre 2017 e ICDM (di tipo m) 4 trimestre 2017;07/03/2018;1900;0;102;1;Spese correnti;4;Trasferimenti correnti;2;Trasferimenti correnti a Famiglie;2;Interventi assistenziali;999;Altri assegni e sussidi assistenziali;07/03/2018
139;16;0; 720,00 ;13.560,00;OMESSO NOMINATIVO NEL RISPETTO DELLA NORMATIVA SULLA PROTEZIONE DATI PERSONALI; ;LIQUIDAZIONE ICDB (Impegnative di Cura domiciliare di tipo b) 2 semestre 2017 e ICDM (di tipo m) 4 trimestre 2017;07/03/2018;1900;0;102;1;Spese correnti;4;Trasferimenti correnti;2;Trasferimenti correnti a Famiglie;2;Interventi assistenziali;999;Altri assegni e sussidi assistenziali;07/03/2018
139;17;0; 720,00 ;13.560,00;OMESSO NOMINATIVO NEL RISPETTO DELLA NORMATIVA SULLA PROTEZIONE DATI PERSONALI; ;LIQUIDAZIONE ICDB (Impegnative di Cura domiciliare di tipo b) 2 semestre 2017 e ICDM (di tipo m) 4 trimestre 2017;07/03/2018;1900;0;102;1;Spese correnti;4;Trasferimenti correnti;2;Trasferimenti correnti a Famiglie;2;Interventi assistenziali;999;Altri assegni e sussidi assistenziali;07/03/2018
139;18;0; 480,00 ;13.560,00;OMESSO NOMINATIVO NEL RISPETTO DELLA NORMATIVA SULLA PROTEZIONE DATI PERSONALI; ;LIQUIDAZIONE ICDB (Impegnative di Cura domiciliare di tipo b) 2 semestre 2017 e ICDM (di tipo m) 4 trimestre 2017;07/03/2018;1900;0;102;1;Spese correnti;4;Trasferimenti correnti;2;Trasferimenti correnti a Famiglie;2;Interventi assistenziali;999;Altri assegni e sussidi assistenziali;07/03/2018
139;19;0; 720,00 ;13.560,00;OMESSO NOMINATIVO NEL RISPETTO DELLA NORMATIVA SULLA PROTEZIONE DATI PERSONALI; ;LIQUIDAZIONE ICDB (Impegnative di Cura domiciliare di tipo b) 2 semestre 2017 e ICDM (di tipo m) 4 trimestre 2017;07/03/2018;1900;0;102;1;Spese correnti;4;Trasferimenti correnti;2;Trasferimenti correnti a Famiglie;2;Interventi assistenziali;999;Altri assegni e sussidi assistenziali;07/03/2018
139;20;0; 720,00 ;13.560,00;OMESSO NOMINATIVO NEL RISPETTO DELLA NORMATIVA SULLA PROTEZIONE DATI PERSONALI; ;LIQUIDAZIONE ICDB (Impegnative di Cura domiciliare di tipo b) 2 semestre 2017 e ICDM (di tipo m) 4 trimestre 2017;07/03/2018;1900;0;102;1;Spese correnti;4;Trasferimenti correnti;2;Trasferimenti correnti a Famiglie;2;Interventi assistenziali;999;Altri assegni e sussidi assistenziali;07/03/2018
139;21;0; 720,00 ;13.560,00;OMESSO NOMINATIVO NEL RISPETTO DELLA NORMATIVA SULLA PROTEZIONE DATI PERSONALI; ;LIQUIDAZIONE ICDB (Impegnative di Cura domiciliare di tipo b) 2 semestre 2017 e ICDM (di tipo m) 4 trimestre 2017;07/03/2018;1900;0;102;1;Spese correnti;4;Trasferimenti correnti;2;Trasferimenti correnti a Famiglie;2;Interventi assistenziali;999;Altri assegni e sussidi assistenziali;07/03/2018
140;1;0; 720,00 ;21.400,00;OMESSO NOMINATIVO NEL RISPETTO DELLA NORMATIVA SULLA PROTEZIONE DATI PERSONALI; ;LIQUIDAZIONE ICDB (Impegnative di Cura domiciliare di tipo b) 2 semestre 2017 e ICDM (di tipo m) 4 trimestre 2017;07/03/2018;1900;0;102;1;Spese correnti;4;Trasferimenti correnti;2;Trasferimenti correnti a Famiglie;2;Interventi assistenziali;999;Altri assegni e sussidi assistenziali;07/03/2018
140;2;0; 400,00 ;21.400,00;OMESSO NOMINATIVO NEL RISPETTO DELLA NORMATIVA SULLA PROTEZIONE DATI PERSONALI; ;LIQUIDAZIONE ICDB (Impegnative di Cura domiciliare di tipo b) 2 semestre 2017 e ICDM (di tipo m) 4 trimestre 2017;07/03/2018;1900;0;102;1;Spese correnti;4;Trasferimenti correnti;2;Trasferimenti correnti a Famiglie;2;Interventi assistenziali;999;Altri assegni e sussidi assistenziali;07/03/2018
140;3;0; 2.360,00 ;21.400,00;OMESSO NOMINATIVO NEL RISPETTO DELLA NORMATIVA SULLA PROTEZIONE DATI PERSONALI; ;LIQUIDAZIONE ICDB (Impegnative di Cura domiciliare di tipo b) 2 semestre 2017 e ICDM (di tipo m) 4 trimestre 2017;07/03/2018;1900;0;102;1;Spese correnti;4;Trasferimenti correnti;2;Trasferimenti correnti a Famiglie;2;Interventi assistenziali;999;Altri assegni e sussidi assistenziali;07/03/2018
140;4;0; 1.200,00 ;21.400,00;OMESSO NOMINATIVO NEL RISPETTO DELLA NORMATIVA SULLA PROTEZIONE DATI PERSONALI; ;LIQUIDAZIONE ICDB (Impegnative di Cura domiciliare di tipo b) 2 semestre 2017 e ICDM (di tipo m) 4 trimestre 2017;07/03/2018;1900;0;102;1;Spese correnti;4;Trasferimenti correnti;2;Trasferimenti correnti a Famiglie;2;Interventi assistenziali;999;Altri assegni e sussidi assistenziali;07/03/2018
140;5;0; 720,00 ;21.400,00;OMESSO NOMINATIVO NEL RISPETTO DELLA NORMATIVA SULLA PROTEZIONE DATI PERSONALI; ;LIQUIDAZIONE ICDB (Impegnative di Cura domiciliare di tipo b) 2 semestre 2017 e ICDM (di tipo m) 4 trimestre 2017;07/03/2018;1900;0;102;1;Spese correnti;4;Trasferimenti correnti;2;Trasferimenti correnti a Famiglie;2;Interventi assistenziali;999;Altri assegni e sussidi assistenziali;07/03/2018
140;6;0; 720,00 ;21.400,00;OMESSO NOMINATIVO NEL RISPETTO DELLA NORMATIVA SULLA PROTEZIONE DATI PERSONALI; ;LIQUIDAZIONE ICDB (Impegnative di Cura domiciliare di tipo b) 2 semestre 2017 e ICDM (di tipo m) 4 trimestre 2017;07/03/2018;1900;0;102;1;Spese correnti;4;Trasferimenti correnti;2;Trasferimenti correnti a Famiglie;2;Interventi assistenziali;999;Altri assegni e sussidi assistenziali;07/03/2018
140;7;0; 720,00 ;21.400,00;OMESSO NOMINATIVO NEL RISPETTO DELLA NORMATIVA SULLA PROTEZIONE DATI PERSONALI; ;LIQUIDAZIONE ICDB (Impegnative di Cura domiciliare di tipo b) 2 semestre 2017 e ICDM (di tipo m) 4 trimestre 2017;07/03/2018;1900;0;102;1;Spese correnti;4;Trasferimenti correnti;2;Trasferimenti correnti a Famiglie;2;Interventi assistenziali;999;Altri assegni e sussidi assistenziali;07/03/2018
140;8;0; 720,00 ;21.400,00;OMESSO NOMINATIVO NEL RISPETTO DELLA NORMATIVA SULLA PROTEZIONE DATI PERSONALI; ;LIQUIDAZIONE ICDB (Impegnative di Cura domiciliare di tipo b) 2 semestre 2017 e ICDM (di tipo m) 4 trimestre 2017;07/03/2018;1900;0;102;1;Spese correnti;4;Trasferimenti correnti;2;Trasferimenti correnti a Famiglie;2;Interventi assistenziali;999;Altri assegni e sussidi assistenziali;07/03/2018
140;9;0; 720,00 ;21.400,00;OMESSO NOMINATIVO NEL RISPETTO DELLA NORMATIVA SULLA PROTEZIONE DATI PERSONALI; ;LIQUIDAZIONE ICDB (Impegnative di Cura domiciliare di tipo b) 2 semestre 2017 e ICDM (di tipo m) 4 trimestre 2017;07/03/2018;1900;0;102;1;Spese correnti;4;Trasferimenti correnti;2;Trasferimenti correnti a Famiglie;2;Interventi assistenziali;999;Altri assegni e sussidi assistenziali;07/03/2018
140;10;0; 1.320,00 ;21.400,00;OMESSO NOMINATIVO NEL RISPETTO DELLA NORMATIVA SULLA PROTEZIONE DATI PERSONALI; ;LIQUIDAZIONE ICDB (Impegnative di Cura domiciliare di tipo b) 2 semestre 2017 e ICDM (di tipo m) 4 trimestre 2017;07/03/2018;1900;0;102;1;Spese correnti;4;Trasferimenti correnti;2;Trasferimenti correnti a Famiglie;2;Interventi assistenziali;999;Altri assegni e sussidi assistenziali;07/03/2018
140;11;0; 1.200,00 ;21.400,00;OMESSO NOMINATIVO NEL RISPETTO DELLA NORMATIVA SULLA PROTEZIONE DATI PERSONALI; ;LIQUIDAZIONE ICDB (Impegnative di Cura domiciliare di tipo b) 2 semestre 2017 e ICDM (di tipo m) 4 trimestre 2017;07/03/2018;1900;0;102;1;Spese correnti;4;Trasferimenti correnti;2;Trasferimenti correnti a Famiglie;2;Interventi assistenziali;999;Altri assegni e sussidi assistenziali;07/03/2018
140;12;0; 1.320,00 ;21.400,00;OMESSO NOMINATIVO NEL RISPETTO DELLA NORMATIVA SULLA PROTEZIONE DATI PERSONALI; ;LIQUIDAZIONE ICDB (Impegnative di Cura domiciliare di tipo b) 2 semestre 2017 e ICDM (di tipo m) 4 trimestre 2017;07/03/2018;1900;0;102;1;Spese correnti;4;Trasferimenti correnti;2;Trasferimenti correnti a Famiglie;2;Interventi assistenziali;999;Altri assegni e sussidi assistenziali;07/03/2018
140;13;0; 720,00 ;21.400,00;OMESSO NOMINATIVO NEL RISPETTO DELLA NORMATIVA SULLA PROTEZIONE DATI PERSONALI; ;LIQUIDAZIONE ICDB (Impegnative di Cura domiciliare di tipo b) 2 semestre 2017 e ICDM (di tipo m) 4 trimestre 2017;07/03/2018;1900;0;102;1;Spese correnti;4;Trasferimenti correnti;2;Trasferimenti correnti a Famiglie;2;Interventi assistenziali;999;Altri assegni e sussidi assistenziali;07/03/2018
140;14;0; 720,00 ;21.400,00;OMESSO NOMINATIVO NEL RISPETTO DELLA NORMATIVA SULLA PROTEZIONE DATI PERSONALI; ;LIQUIDAZIONE ICDB (Impegnative di Cura domiciliare di tipo b) 2 semestre 2017 e ICDM (di tipo m) 4 trimestre 2017;07/03/2018;1900;0;102;1;Spese correnti;4;Trasferimenti correnti;2;Trasferimenti correnti a Famiglie;2;Interventi assistenziali;999;Altri assegni e sussidi assistenziali;07/03/2018
140;15;0; 480,00 ;21.400,00;OMESSO NOMINATIVO NEL RISPETTO DELLA NORMATIVA SULLA PROTEZIONE DATI PERSONALI; ;LIQUIDAZIONE ICDB (Impegnative di Cura domiciliare di tipo b) 2 semestre 2017 e ICDM (di tipo m) 4 trimestre 2017: M.A.;07/03/2018;1900;0;102;1;Spese correnti;4;Trasferimenti correnti;2;Trasferimenti correnti a Famiglie;2;Interventi assistenziali;999;Altri assegni e sussidi assistenziali;07/03/2018
140;16;0; 720,00 ;21.400,00;OMESSO NOMINATIVO NEL RISPETTO DELLA NORMATIVA SULLA PROTEZIONE DATI PERSONALI; ;LIQUIDAZIONE ICDB (Impegnative di Cura domiciliare di tipo b) 2 semestre 2017 e ICDM (di tipo m) 4 trimestre 2017: P.G.;07/03/2018;1900;0;102;1;Spese correnti;4;Trasferimenti correnti;2;Trasferimenti correnti a Famiglie;2;Interventi assistenziali;999;Altri assegni e sussidi assistenziali;07/03/2018
140;17;0; 1.040,00 ;21.400,00;OMESSO NOMINATIVO NEL RISPETTO DELLA NORMATIVA SULLA PROTEZIONE DATI PERSONALI; ;LIQUIDAZIONE ICDB (Impegnative di Cura domiciliare di tipo b) 2 semestre 2017 e ICDM (di tipo m) 4 trimestre 2017;07/03/2018;1900;0;102;1;Spese correnti;4;Trasferimenti correnti;2;Trasferimenti correnti a Famiglie;2;Interventi assistenziali;999;Altri assegni e sussidi assistenziali;07/03/2018
140;18;0; 720,00 ;21.400,00;OMESSO NOMINATIVO NEL RISPETTO DELLA NORMATIVA SULLA PROTEZIONE DATI PERSONALI; ;LIQUIDAZIONE ICDB (Impegnative di Cura domiciliare di tipo b) 2 semestre 2017 e ICDM (di tipo m) 4 trimestre 2017;07/03/2018;1900;0;102;1;Spese correnti;4;Trasferimenti correnti;2;Trasferimenti correnti a Famiglie;2;Interventi assistenziali;999;Altri assegni e sussidi assistenziali;07/03/2018
140;19;0; 800,00 ;21.400,00;OMESSO NOMINATIVO NEL RISPETTO DELLA NORMATIVA SULLA PROTEZIONE DATI PERSONALI; ;LIQUIDAZIONE ICDB (Impegnative di Cura domiciliare di tipo b) 2 semestre 2017 e ICDM (di tipo m) 4 trimestre 2017;07/03/2018;1900;0;102;1;Spese correnti;4;Trasferimenti correnti;2;Trasferimenti correnti a Famiglie;2;Interventi assistenziali;999;Altri assegni e sussidi assistenziali;07/03/2018
140;20;0; 720,00 ;21.400,00;OMESSO NOMINATIVO NEL RISPETTO DELLA NORMATIVA SULLA PROTEZIONE DATI PERSONALI; ;LIQUIDAZIONE ICDB (Impegnative di Cura domiciliare di tipo b) 2 semestre 2017 e ICDM (di tipo m) 4 trimestre 2017;07/03/2018;1900;0;102;1;Spese correnti;4;Trasferimenti correnti;2;Trasferimenti correnti a Famiglie;2;Interventi assistenziali;999;Altri assegni e sussidi assistenziali;07/03/2018
140;21;0; 1.200,00 ;21.400,00;OMESSO NOMINATIVO NEL RISPETTO DELLA NORMATIVA SULLA PROTEZIONE DATI PERSONALI; ;LIQUIDAZIONE ICDB (Impegnative di Cura domiciliare di tipo b) 2 semestre 2017 e ICDM (di tipo m) 4 trimestre 2017;07/03/2018;1900;0;102;1;Spese correnti;4;Trasferimenti correnti;2;Trasferimenti correnti a Famiglie;2;Interventi assistenziali;999;Altri assegni e sussidi assistenziali;07/03/2018
140;22;0; 720,00 ;21.400,00;OMESSO NOMINATIVO NEL RISPETTO DELLA NORMATIVA SULLA PROTEZIONE DATI PERSONALI; ;LIQUIDAZIONE ICDB (Impegnative di Cura domiciliare di tipo b) 2 semestre 2017 e ICDM (di tipo m) 4 trimestre 2017;07/03/2018;1900;0;102;1;Spese correnti;4;Trasferimenti correnti;2;Trasferimenti correnti a Famiglie;2;Interventi assistenziali;999;Altri assegni e sussidi assistenziali;07/03/2018
140;23;0; 720,00 ;21.400,00;OMESSO NOMINATIVO NEL RISPETTO DELLA NORMATIVA SULLA PROTEZIONE DATI PERSONALI; ;LIQUIDAZIONE ICDB (Impegnative di Cura domiciliare di tipo b) 2 semestre 2017 e ICDM (di tipo m) 4 trimestre 2017;07/03/2018;1900;0;102;1;Spese correnti;4;Trasferimenti correnti;2;Trasferimenti correnti a Famiglie;2;Interventi assistenziali;999;Altri assegni e sussidi assistenziali;07/03/2018
140;24;0; 720,00 ;21.400,00;OMESSO NOMINATIVO NEL RISPETTO DELLA NORMATIVA SULLA PROTEZIONE DATI PERSONALI; ;LIQUIDAZIONE ICDB (Impegnative di Cura domiciliare di tipo b) 2 semestre 2017 e ICDM (di tipo m) 4 trimestre 2017;07/03/2018;1900;0;102;1;Spese correnti;4;Trasferimenti correnti;2;Trasferimenti correnti a Famiglie;2;Interventi assistenziali;999;Altri assegni e sussidi assistenziali;07/03/2018
141;1;0; 283,65 ;283,65;POSTE ITALIANE SPA; ;SPESE TENUTA CCP SERVIZIO TESORERIA E UFFICIO CONTRAVVENZIONI ANNO 2017;08/03/2018;200;0;263;1;Spese correnti;3;Acquisto di beni e servizi;2;Acquisto di servizi;17;Servizi finanziari;2;Oneri per servizio di tesoreria;08/03/2018
142;1;0; 297,25 ;297,25;POSTE ITALIANE SPA; ;SPESE TENUTA CCP SERVIZIO TESORERIA E UFFICIO CONTRAVVENZIONI ANNO 2017;08/03/2018;200;0;263;1;Spese correnti;3;Acquisto di beni e servizi;2;Acquisto di servizi;17;Servizi finanziari;2;Oneri per servizio di tesoreria;08/03/2018
143;1;0; 1.328,63 ;1.328,63;POSTE ITALIANE SPA; ;SPESE TENUTA CCP SERVIZIO TESORERIA E UFFICIO CONTRAVVENZIONI ANNO 2017;08/03/2018;200;0;263;1;Spese correnti;3;Acquisto di beni e servizi;2;Acquisto di servizi;17;Servizi finanziari;2;Oneri per servizio di tesoreria;08/03/2018
144;1;0; 300,00 ;300;A.N.A. ASSOCIAZIONE NAZIONALE ALPINI - MAROSTICA;0;ASSUNZIONE IMPEGNO DI SPESA PER EROGAZIONE CONTRIBUTO ALLE ASSOCIAZIONE DI VOLONTARIATO ANA - SEZ. DI MAROSTICA CONVENZIONATA CON L'UNIONE MONTANA MAROSTICENSE PER ATTIVITA' ANTIGRANDINE ANNO 2017;08/03/2018;1400;0;369;1;Spese correnti;3;Acquisto di beni e servizi;2;Acquisto di servizi;99;Altri servizi;999;Altri servizi diversi n.a.c.;08/03/2018
145;1;0; 608,56 ;608,56;SCANAGATTA CARBURANTI SRL;Z1221C7BB3;SALDO Fatt.n. V3  06  del 28/02/2018 FORNITURA CARBURANTE AUTOVETTURE SERVIZI SOCIALI FEBBRAIO 2018;08/03/2018;1599;0;45;1;Spese correnti;3;Acquisto di beni e servizi;1;Acquisto di beni;2;Altri beni di consumo;2;Carburanti, combustibili e lubrificanti;08/03/2018
146;1;0; 385,00 ;3.355,00;SUSIO BRUNO; ;SALDO Fatt.n. 364/PA  del 23/01/2018 Compenso come OIV giugno-dicembre 2017 (+ estensione per valutazione anno 2015) - INTEGRAZIONE;08/03/2018;50;0;306;1;Spese correnti;3;Acquisto di beni e servizi;2;Acquisto di servizi;1;Organi e incarichi istituzionali dell'amministrazione;8;Compensi agli organi istituzionali di revisione, di controllo ed altri incarichi istituzionali dell'amministrazione;08/03/2018
146;2;0; 2.970,00 ;3.355,00;SUSIO BRUNO; ;SALDO Fatt.n. 352/PA  del 03/01/2018 Compenso come OIV giugno-dicembre 2017 (+ estensione per valutazione anno 2015);08/03/2018;50;0;306;1;Spese correnti;3;Acquisto di beni e servizi;2;Acquisto di servizi;1;Organi e incarichi istituzionali dell'amministrazione;8;Compensi agli organi istituzionali di revisione, di controllo ed altri incarichi istituzionali dell'amministrazione;08/03/2018
147;1;0; 202,00 ;202;CENTRO STUDI AMMINISTRATIVI ALTA PADOVANA S.A.S DI BRUG;Z26221F838;SALDO Fatt.n. 00037  del 24/02/2018 CORSO DEL 14 FEBBRAIO PRESSO HOTEL CONTINENTAL TREVISO: ASPETTI OPERATIVI DENUNCIA MENSILE E PASSWORD;08/03/2018;134;0;37;1;Spese correnti;3;Acquisto di beni e servizi;2;Acquisto di servizi;4;Acquisto di servizi per formazione e addestramento del personale dell'ente;999;Acquisto di servizi per altre spese per formazione e addestramento n.a.c.;08/03/2018
148;1;0; 33,99 ;33,99;AUTOLAVAGGIO MILLE LUNE DI COSTACURTA SIMONE;Z9C1E581FD;SALDO Fatt.n. FATTPA 3_18  del 28/02/2018 SERVIZIO LAVAGGIO AUTO POLIZIA LOCALE;08/03/2018;233;0;157;1;Spese correnti;3;Acquisto di beni e servizi;2;Acquisto di servizi;9;Manutenzione ordinaria e riparazioni;1;Manutenzione ordinaria e riparazioni di mezzi di trasporto ad uso civile, di sicurezza e ordine pubblico;08/03/2018
149;1;0; 112,24 ;233,51;GRAFICHE E. GASPARI S.R.L.;Z9421CDF73;SALDO Fatt.n. 04150  del 28/02/2018 FORNITURA TIMBRI;08/03/2018;250;0;21;1;Spese correnti;3;Acquisto di beni e servizi;1;Acquisto di beni;2;Altri beni di consumo;1;Carta, cancelleria e stampati;08/03/2018
149;2;0; 121,27 ;233,51;GRAFICHE E. GASPARI S.R.L.;Z9421CDF73;SALDO Fatt.n. 04165  del 28/02/2018 FORNITURA TIMBRI;08/03/2018;250;0;21;1;Spese correnti;3;Acquisto di beni e servizi;1;Acquisto di beni;2;Altri beni di consumo;1;Carta, cancelleria e stampati;08/03/2018
152;1;0; 81,86 ;81,86;AUTOFFICINA ELETTRAUTO PIZZATO ENZO;ZAF1D259E7;SALDO Fatt.n. 00007  del 22/02/2018 INTERVENTO SU AUTOMEZZO SERVIZI SOCIALI TARGATO DT789CH;14/03/2018;233;0;16;1;Spese correnti;3;Acquisto di beni e servizi;2;Acquisto di servizi;9;Manutenzione ordinaria e riparazioni;1;Manutenzione ordinaria e riparazioni di mezzi di trasporto ad uso civile, di sicurezza e ordine pubblico;14/03/2018
153;1;0; 69,54 ;834,99;AUTOFFICINA ELETTRAUTO PIZZATO ENZO;ZAF1D259E7;SALDO Fatt.n. 00002  del 21/02/2018 INTERVENTO SU AUTOMEZZO POLIZIA LOCALE TARGATO YA652AL;14/03/2018;233;0;117;1;Spese correnti;3;Acquisto di beni e servizi;2;Acquisto di servizi;9;Manutenzione ordinaria e riparazioni;1;Manutenzione ordinaria e riparazioni di mezzi di trasporto ad uso civile, di sicurezza e ordine pubblico;14/03/2018
153;2;0; 192,54 ;834,99;AUTOFFICINA ELETTRAUTO PIZZATO ENZO;ZAF1D259E7;SALDO Fatt.n. 00001  del 21/02/2018 INTERVENTO SU AUTOMEZZO PROTEZIONE CIVILE TARGATO ZA773PT;14/03/2018;233;0;117;1;Spese correnti;3;Acquisto di beni e servizi;2;Acquisto di servizi;9;Manutenzione ordinaria e riparazioni;1;Manutenzione ordinaria e riparazioni di mezzi di trasporto ad uso civile, di sicurezza e ordine pubblico;14/03/2018
153;3;0; 572,91 ;834,99;AUTOFFICINA ELETTRAUTO PIZZATO ENZO;ZAF1D259E7;SALDO Fatt.n. 00003  del 21/02/2018 INTERVENTO SU AUTOMEZZO POLIZIA LOCALE TARGATO YA777AC;14/03/2018;233;0;117;1;Spese correnti;3;Acquisto di beni e servizi;2;Acquisto di servizi;9;Manutenzione ordinaria e riparazioni;1;Manutenzione ordinaria e riparazioni di mezzi di trasporto ad uso civile, di sicurezza e ordine pubblico;14/03/2018
154;1;0; 200,00 ;200;SOCIETA' VICENTINA TRASPORTI S.R.L.;ZBD21D3504;"SALDO Fatt.n. 00043PA  del 28/02/2018 INIZIATIVE ""UNIVERSITA' IN-FORMALE 2018""";14/03/2018;1717;0;17;1;Spese correnti;3;Acquisto di beni e servizi;2;Acquisto di servizi;11;Prestazioni professionali e specialistiche;999;Altre prestazioni professionali e specialistiche n.a.c.;14/03/2018
155;1;0; 1.824,62 ;3.792,31;COM METODI S.P.A.;ZDD1A11CA6;SALDO Fatt.n. FV18-0009  del 11/01/2018 GESTIONE PSS - VISITE MEDICHE 01/07/2017-30/09/2017;14/03/2018;259;0;156;1;Spese correnti;3;Acquisto di beni e servizi;2;Acquisto di servizi;4;Acquisto di servizi per formazione e addestramento del personale dell'ente;4;Acquisto di servizi per formazione obbligatoria;14/03/2018
155;2;0; 1.967,69 ;3.792,31;COM METODI S.P.A.;ZDD1A11CA6;SALDO Fatt.n. FV18-0008  del 11/01/2018 SERVIZI TECNICI  PERIODO 01/07/2017-30/09/2017;14/03/2018;259;0;156;1;Spese correnti;3;Acquisto di beni e servizi;2;Acquisto di servizi;4;Acquisto di servizi per formazione e addestramento del personale dell'ente;4;Acquisto di servizi per formazione obbligatoria;14/03/2018
156;1;0; 359,09 ;359,09;SCANAGATTA CARBURANTI SRL;Z1221C7BB3;SALDO Fatt.n. V3  05  del 28/02/2018 FORNITURA CARBURANTE AUTOVETTURE POLIZIA LOCALE FEBBRAIO 2018;14/03/2018;400;0;44;1;Spese correnti;3;Acquisto di beni e servizi;1;Acquisto di beni;2;Altri beni di consumo;2;Carburanti, combustibili e lubrificanti;14/03/2018
158;1;0; 788,24 ;788,24;SERVIZI SOCIALI LA GOCCIA  S.C.S.A R.L.;610826186E;ACCONTO Fatt.n. 536/PA  del 28/11/2017 ASSISTENZA DOMICILIARE OTTOBRE 2017;15/03/2018;1610;0;221;1;Spese correnti;3;Acquisto di beni e servizi;2;Acquisto di servizi;15;Contratti di servizio pubblico;9;Contratti di servizio di assistenza sociale domiciliare;15/03/2018
159;1;0; 497,52 ;497,52;SERVIZI SOCIALI LA GOCCIA  S.C.S.A R.L.;610826186E;ACCONTO Fatt.n. 536/PA  del 28/11/2017 ASSISTENZA DOMICILIARE OTTOBRE 2017;15/03/2018;1610;0;432;1;Spese correnti;3;Acquisto di beni e servizi;2;Acquisto di servizi;15;Contratti di servizio pubblico;9;Contratti di servizio di assistenza sociale domiciliare;15/03/2018
160;1;0; 1.974,33 ;1.974,33;SERVIZI SOCIALI LA GOCCIA  S.C.S.A R.L.;610826186E;SALDO Fatt.n. 536/PA  del 28/11/2017 ASSISTENZA DOMICILIARE OTTOBRE 2017;15/03/2018;1610;0;199;1;Spese correnti;3;Acquisto di beni e servizi;2;Acquisto di servizi;15;Contratti di servizio pubblico;9;Contratti di servizio di assistenza sociale domiciliare;15/03/2018
180;1;0; 125,94 ;125,94;PERSONALE DIPENDENTI UFFICI DIVERSI; ;STIPENDI MESE DI: GENNAIO 18;16/03/2018;261;0;154;1;Spese correnti;3;Acquisto di beni e servizi;2;Acquisto di servizi;14;Servizi di ristorazione;2;Servizio mense personale civile;16/03/2018
224;1;0; 312,69 ;3.991,19;REGIONE VENETO; ;VERS. IMPOSTE MESE: GENNAIO 18 PER I.R.A.P.;19/03/2018;1720;0;70;1;Spese correnti;3;Acquisto di beni e servizi;2;Acquisto di servizi;13;Servizi ausiliari per il funzionamento dell'ente;999;Altri servizi ausiliari n.a.c.;19/03/2018
224;2;0; 450,83 ;3.991,19;SERVIZIO CIVILE ANZIANI; ;STIPENDI RELATIVI AL MESE DI: GENNAIO 18;19/03/2018;1720;0;70;1;Spese correnti;3;Acquisto di beni e servizi;2;Acquisto di servizi;13;Servizi ausiliari per il funzionamento dell'ente;999;Altri servizi ausiliari n.a.c.;19/03/2018
224;3;0; 3.227,67 ;3.991,19;SERVIZIO CIVILE ANZIANI; ;STIPENDI MESE DI: GENNAIO 18;19/03/2018;1720;0;70;1;Spese correnti;3;Acquisto di beni e servizi;2;Acquisto di servizi;13;Servizi ausiliari per il funzionamento dell'ente;999;Altri servizi ausiliari n.a.c.;19/03/2018
227;1;0; 90,06 ;678,74;AUTOFFICINA ELETTRAUTO PIZZATO ENZO;ZAF1D259E7;SALDO Fatt.n. 00011  del 14/03/2018 INTERVENTO DI RIPARAZIONE AUTOVETTURA PROTEZIONE CIVILE TARGATA ZA453HA;21/03/2018;233;0;117;1;Spese correnti;3;Acquisto di beni e servizi;2;Acquisto di servizi;9;Manutenzione ordinaria e riparazioni;1;Manutenzione ordinaria e riparazioni di mezzi di trasporto ad uso civile, di sicurezza e ordine pubblico;21/03/2018
227;2;0; 177,39 ;678,74;AUTOFFICINA ELETTRAUTO PIZZATO ENZO;ZAF1D259E7;SALDO Fatt.n. 00010  del 14/03/2018 INTERVENTO DI RIPARAZIONE AUTOVETTURA POLIZA LOCALE TARGATA YA652AL;21/03/2018;233;0;117;1;Spese correnti;3;Acquisto di beni e servizi;2;Acquisto di servizi;9;Manutenzione ordinaria e riparazioni;1;Manutenzione ordinaria e riparazioni di mezzi di trasporto ad uso civile, di sicurezza e ordine pubblico;21/03/2018
227;3;0; 411,29 ;678,74;AUTOFFICINA ELETTRAUTO PIZZATO ENZO;ZAF1D259E7;SALDO Fatt.n. 00012  del 14/03/2018 INTERVENTO SU AUTOMEZZO POLIZIA LOCALE TARGATO YA777AC;21/03/2018;233;0;117;1;Spese correnti;3;Acquisto di beni e servizi;2;Acquisto di servizi;9;Manutenzione ordinaria e riparazioni;1;Manutenzione ordinaria e riparazioni di mezzi di trasporto ad uso civile, di sicurezza e ordine pubblico;21/03/2018
228;1;0; 30,28 ;30,28;AUTOFFICINA ELETTRAUTO PIZZATO ENZO;ZAF1D259E7;SALDO Fatt.n. 00013  del 14/03/2018 INTERVENTO DI RIPARAZIONE AUTOVETTURA SERVIZI SOCIALI TARGATA CH887WJ;21/03/2018;233;0;16;1;Spese correnti;3;Acquisto di beni e servizi;2;Acquisto di servizi;9;Manutenzione ordinaria e riparazioni;1;Manutenzione ordinaria e riparazioni di mezzi di trasporto ad uso civile, di sicurezza e ordine pubblico;21/03/2018
229;1;0; 500,00 ;500;CRESTANI VALTER; ;ASSUNZIONE IMPEGNO DI SPESA PER ACQUISTO RICARICHE TELEFONICHE CANNONI ANTIGRANDINE E CELLULARI DI SERVIZIO ANNO 2018;21/03/2018;1374;0;110;1;Spese correnti;3;Acquisto di beni e servizi;1;Acquisto di beni;2;Altri beni di consumo;999;Altri beni e materiali di consumo n.a.c.;21/03/2018
230;1;0; 22,83 ;54,71;NIVI CREDIT S.R.L.;ZA21ECF1B7;SALDO Fatt.n. 1242E  del 28/02/2018 FATTURA CORRISPETTIVI SU PT;22/03/2018;509;0;200;1;Spese correnti;3;Acquisto di beni e servizi;2;Acquisto di servizi;16;Servizi amministrativi;999;Altre spese per servizi amministrativi;22/03/2018
230;2;0; 31,88 ;54,71;NIVI CREDIT S.R.L.;ZA21ECF1B7;SALDO Fatt.n. 1241E  del 28/02/2018 RIMBORSO SPESE PROCEDURA EMO E SERVIZIO DI OUTSOURCING;22/03/2018;509;0;200;1;Spese correnti;3;Acquisto di beni e servizi;2;Acquisto di servizi;16;Servizi amministrativi;999;Altre spese per servizi amministrativi;22/03/2018
296;1;0; 421,08 ;1.702,23;OPEN SOFTWARE S.R.L.;ZBB2011AC7;SALDO Fatt.n. 000750  del 28/02/2018 RENDICONTAZIONE  E STAMPA IMBUSTAMENTO VERBALI;26/03/2018;510;0;298;1;Spese correnti;3;Acquisto di beni e servizi;2;Acquisto di servizi;16;Servizi amministrativi;999;Altre spese per servizi amministrativi;26/03/2018
296;2;0; 578,75 ;1.702,23;OPEN SOFTWARE S.R.L.;ZBB2011AC7;SALDO Fatt.n. 000751  del 28/02/2018 ANTICIPAZIONE BOLLI POSTALI;26/03/2018;510;0;298;1;Spese correnti;3;Acquisto di beni e servizi;2;Acquisto di servizi;16;Servizi amministrativi;999;Altre spese per servizi amministrativi;26/03/2018
296;3;0; 702,40 ;1.702,23;OPEN SOFTWARE S.R.L.;ZBB2011AC7;SALDO Fatt.n. 000752  del 28/02/2018 RICHIESTA ANTICIPAZIONE SPESE PER VALORI BOLLATI;26/03/2018;510;0;298;1;Spese correnti;3;Acquisto di beni e servizi;2;Acquisto di servizi;16;Servizi amministrativi;999;Altre spese per servizi amministrativi;26/03/2018
297;1;0; 4.514,00 ;4.514,00;M6 SRL;Z9315D153A;SALDO Fatt.n. 4PA  del 20/03/2018 AGGIORNAMENTO DEI PIANI DI PROTEZIONE CIVILE PER I COMUNI DI MAROSTICA E PIANEZZE;26/03/2018;1400;0;334;1;Spese correnti;3;Acquisto di beni e servizi;2;Acquisto di servizi;99;Altri servizi;999;Altri servizi diversi n.a.c.;26/03/2018
298;1;0; 99,31 ;99,31;EDIT GRAF DI ISEPPI STEFANO;ZC2221E57A;SALDO Fatt.n. 2/182  del 28/02/2018 FORNITURA MATERIALE CANCELLERIA;26/03/2018;250;0;46;1;Spese correnti;3;Acquisto di beni e servizi;1;Acquisto di beni;2;Altri beni di consumo;1;Carta, cancelleria e stampati;26/03/2018
299;1;0; 382,10 ;382,1;EDIT GRAF DI ISEPPI STEFANO;ZCB221E6EC;SALDO Fatt.n. 2/148  del 27/02/2018 FORNITURA RISME CARTA;26/03/2018;250;0;99;1;Spese correnti;3;Acquisto di beni e servizi;1;Acquisto di beni;2;Altri beni di consumo;1;Carta, cancelleria e stampati;26/03/2018
300;1;0; 350,00 ;350;BONOTTO LINA; ;INCARICO DI ACCOMPAGNATORE AL SOGGIORNO CLIMATICO PER ANZIANI - TURNO PRIMAVERILE ALLE TERME;26/03/2018;1700;0;35;1;Spese correnti;3;Acquisto di beni e servizi;2;Acquisto di servizi;99;Altri servizi;999;Altri servizi diversi n.a.c.;26/03/2018
301;1;0; 79,79 ;79,79;FARINA CRISTINA; ;LIQUIDAZIONE DEL COMPENSO AI MEMBRI DELLA COMMISSIONE GIUDICATRICE DEL CONCORSO PUBBLICO PER ESAMI PER LA COPERTURA A TEMPO INDETERMINATO E PIENO DI UN POSTO DI AGENTE DI POLIZIA LOCALE CAT.C CCNL 31/03/1999: COMPENSO.;26/03/2018;132;0;230;1;Spese correnti;3;Acquisto di beni e servizi;2;Acquisto di servizi;16;Servizi amministrativi;999;Altre spese per servizi amministrativi;26/03/2018
302;1;0; 1,55 ;1,55;FARINA CRISTINA; ;LIQUIDAZIONE DEL COMPENSO AI MEMBRI DELLA COMMISSIONE GIUDICATRICE DEL CONCORSO PUBBLICO PER ESAMI PER LA COPERTURA A TEMPO INDETERMINATO E PIENO DI UN POSTO DI AGENTE DI POLIZIA LOCALE CAT.C CCNL 31/03/1999.;26/03/2018;132;0;230;1;Spese correnti;3;Acquisto di beni e servizi;2;Acquisto di servizi;16;Servizi amministrativi;999;Altre spese per servizi amministrativi;26/03/2018
303;1;0; 13,02 ;13,02;MICHELON DAVIDE; ;LIQUIDAZIONE DEL COMPENSO AI MEMBRI DELLA COMMISSIONE GIUDICATRICE DEL CONCORSO PUBBLICO PER ESAMI PER LA COPERTURA A TEMPO INDETERMINATO E PIENO DI UN POSTO DI AGENTE DI POLIZIA LOCALE CAT.C CCNL 31/03/1999.;26/03/2018;132;0;222;1;Spese correnti;3;Acquisto di beni e servizi;2;Acquisto di servizi;16;Servizi amministrativi;999;Altre spese per servizi amministrativi;26/03/2018
304;1;0; 79,79 ;79,79;MICHELON DAVIDE; ;LIQUIDAZIONE DEL COMPENSO AI MEMBRI DELLA COMMISSIONE GIUDICATRICE DEL CONCORSO PUBBLICO PER ESAMI PER LA COPERTURA A TEMPO INDETERMINATO E PIENO DI UN POSTO DI AGENTE DI POLIZIA LOCALE CAT.C CCNL 31/03/1999.;26/03/2018;132;0;222;1;Spese correnti;3;Acquisto di beni e servizi;2;Acquisto di servizi;16;Servizi amministrativi;999;Altre spese per servizi amministrativi;26/03/2018
305;1;0; 3.320,46 ;3.320,46;SERVIZI SOCIALI LA GOCCIA  S.C.S.A R.L.;610826186E;SALDO Fatt.n. 29/PA  del 22/02/2018 ASSISTENZA DOMICILIARE ANZIANI GENNAIO 2018;28/03/2018;1610;0;432;1;Spese correnti;3;Acquisto di beni e servizi;2;Acquisto di servizi;15;Contratti di servizio pubblico;9;Contratti di servizio di assistenza sociale domiciliare;28/03/2018
306;1;0; 2.420,34 ;2.420,34;SERVIZI SOCIALI LA GOCCIA  S.C.S.A R.L.;610826186E;SALDO Fatt.n. 30/PA  del 22/02/2018 ASSISTENZA SOCIALE GENNAIO 2018;28/03/2018;1610;0;432;1;Spese correnti;3;Acquisto di beni e servizi;2;Acquisto di servizi;15;Contratti di servizio pubblico;9;Contratti di servizio di assistenza sociale domiciliare;28/03/2018
307;1;0; 272,45 ;272,45;ORTOPEDIA SANITARIA LOLATO DI LOLATO EMANUELE;Z0B21D3610;SALDO Fatt.n. FE/30  del 22/02/2018 FORNITURA MATERIALE SANITARIO;28/03/2018;1601;0;14;1;Spese correnti;3;Acquisto di beni e servizi;1;Acquisto di beni;2;Altri beni di consumo;999;Altri beni e materiali di consumo n.a.c.;28/03/2018
308;1;0; 142,00 ;142;OMESSO NOMINATIVO NEL RISPETTO DELLA NORMATIVA SULLA PROTEZIONE DATI PERSONALI; ;SALDO Fatt.n. 6/13/3  del 15/02/2018 Progetto home care premium gennaio 2018 utente Bizzotto Gianfranca;28/03/2018;1704;0;15;1;Spese correnti;3;Acquisto di beni e servizi;2;Acquisto di servizi;15;Contratti di servizio pubblico;9;Contratti di servizio di assistenza sociale domiciliare;28/03/2018
309;1;0; 5.049,00 ;5.049,00;FONDAZIONE GIUSEPPE RUBBI - CASA PER ANZIANI;Z2E217FF46;SALDO Fatt.n. 3/3  del 31/01/2018 FORNITURA PASTI A FAVORE DI PERSONE ANZIANE E INABILI MESE DI GENNAIO 2018;28/03/2018;1704;0;426;1;Spese correnti;3;Acquisto di beni e servizi;2;Acquisto di servizi;15;Contratti di servizio pubblico;9;Contratti di servizio di assistenza sociale domiciliare;28/03/2018
310;1;0; 5,88 ;5,88;COMUNE DI FORLI'; ;ASSUNZIONE IMPEGNO DI SPESA PER RIMBORSO SPESE DI NOTIFICA ANNO 2018;28/03/2018;273;0;123;1;Spese correnti;4;Trasferimenti correnti;1;Trasferimenti correnti a Amministrazioni Pubbliche;2;Trasferimenti correnti a Amministrazioni Locali;3;Trasferimenti correnti a Comuni;28/03/2018
311;1;0; 11,76 ;11,76;COMUNE DI CASTELFRANCO VENETO; ;ASSUNZIONE IMPEGNO DI SPESA PER RIMBORSO SPESE DI NOTIFICA ANNO 2018;29/03/2018;273;0;123;1;Spese correnti;4;Trasferimenti correnti;1;Trasferimenti correnti a Amministrazioni Pubbliche;2;Trasferimenti correnti a Amministrazioni Locali;3;Trasferimenti correnti a Comuni;29/03/2018
312;1;0; 2.058,33 ;2.058,33;REGIONE VENETO SANITA'; ;VERSAMENTO DELL'IMPORTO DERIVANTE DALLE SANZIONI AMMINISTRATIVE EX C. 2 E 3 ART. 8 L.R. 23/2007 - ANNO 2017;29/03/2018;270;0;125;1;Spese correnti;4;Trasferimenti correnti;1;Trasferimenti correnti a Amministrazioni Pubbliche;2;Trasferimenti correnti a Amministrazioni Locali;1;Trasferimenti correnti a Regioni e province autonome;29/03/2018
313;1;0; 39,30 ;39,3;AZIENDA ULSS N. 7 PEDEMONTANA; ;SPESE DI NOTICA ANNO 2017 PER SANZIONI AMMINISTRATIVE IN MATERIA DI IGIENE E SANITA' PUBBLICA - L.R. 23/2007 ART. 8 - VERBALI 48/2016 E 33/2014 INTROITATE NELL'ANNO 2017.;29/03/2018;270;0;126;1;Spese correnti;4;Trasferimenti correnti;1;Trasferimenti correnti a Amministrazioni Pubbliche;2;Trasferimenti correnti a Amministrazioni Locali;11;Trasferimenti correnti a Aziende sanitarie locali  n.a.f.;29/03/2018
314;1;0; 175,13 ;175,13;TELECOM ITALIA S.P.A. - (TIM S.P.A.); ;SALDO Fatt.n. 7X00550707  del 14/02/2018 SPESE TELEFONICHE 2 BIM 2018. CONTRATTO 888000540158;29/03/2018;231;0;141;1;Spese correnti;3;Acquisto di beni e servizi;2;Acquisto di servizi;5;Utenze e canoni;2;Telefonia mobile;29/03/2018
